Workbook

Sheet SAMPLES
B3: IPTS number
B4: PI and PI's email
E5: Lattice constants
B6: Sample Name | C6: Chemical Formula (e.g. H2O) | D6: mass (g) | E6: a (Å) | F6: b (Å) | G6: c (Å) | H6: α (deg) | I6: β (deg) | J6: γ (deg) | K6: Z | L6: Solid density (g/cm^3) | M6: ITEMS
B7: Sample 1 Name
B8: Sample 2 Name
B9: Sample 3 Name

Sheet MEASUREMENTS
J4: Maximum Measurement time (hours) | K4: 24
A5: NOTES | B5: Temp. (K) (5 to 320 K) | C5: Sample | D5: Incident Energy (meV) | E5: Fermi Frequency (Hz) | F5: Detector Vessel Angle (S2, deg) | G5: Time to measure (Coulombs) (4.9 C/hour at 1.4 MW) | H5: Time to set Temperature (minutes) | I5: Time to set Config. (minutes) | J5: Elapsed Time for commands (minutes) | K5: Total Elapsed time (hours) | L5: Putative Title
A6: INITIAL CONFIGURATION | B6: 290 | D6: 25 | E6: 180 | F6: -35
A7: Example 1 | B7: 5 | C7: Sample 1 Name | D7: 25 | E7: 240 | F7: -45 | G7: 12 | H7: =IF(IF($B7>0,$B7-INDEX($B:$B,_xlfn.AGGREGATE(14,6,1/(LEN($B$1:INDEX(B:B,ROW()-1))>0)*ROW(B:B),1)),"")<>"", ABS(IF($B7>0,$B7-INDEX($B:$B,_xlfn.AGGREGATE(14,6,1/(LEN($B$1:INDEX(B:B,ROW()-1))>0)*ROW(B:B),1)),""))/'Time constants'!$C$8+IF(B7=B6,0,1)*'Time constants'!$C$7,"") -> 91.50931677 | I7: =IF(F7=F6,0,1)*'Time constants'!C5+IF(E7=E6,0,1)*'Time constants'!C4+IF(D7=D6,0,1)*'Time constants'!$C$4 -> 10 | J7: =IF(IF(G7="",0,G7/'Time constants'!$C$6)+IF(H7="",0,H7)+IF(I7="",0,I7)=0,"",IF(G7="",0,G7/'Time constants'!$C$6)+IF(H7="",0,H7)+IF(I7="",0,I7)) -> 248.4480923 | K7: =IF(J7/60="","",J7/60) -> 4.140801538 | L7: =IF(C7="","",TEXT(C7,"0") &", S2 = " & TEXT(F7,"0") & "deg " & TEXT(D7,"0.0") & " meV, " & TEXT(E7,"0.0") & " Hz, " & "T=" & TEXT(B7,"0.00") & " K, " &TEXT(G7,"0.00") & " C") -> Sample 1 Name, S2 = -45deg 25.0 meV, 240.0 Hz, T=5.00 K, 12.00 C
A8: Example 2 | B8: 5 | C8: Sample 2 Name | D8: 25 | E8: 300 | F8: -35 | G8: 12 | H8: =IF(IF($B8>0,$B8-INDEX($B:$B,_xlfn.AGGREGATE(14,6,1/(LEN($B$1:INDEX(B:B,ROW()-1))>0)*ROW(B:B),1)),"")<>"", ABS(IF($B8>0,$B8-INDEX($B:$B,_xlfn.AGGREGATE(14,6,1/(LEN($B$1:INDEX(B:B,ROW()-1))>0)*ROW(B:B),1)),""))/'Time constants'!$C$8+IF(B8=B7,0,1)*'Time constants'!$C$7,"") -> 0 | I8: =IF(F8=F7,0,1)*'Time constants'!C6+IF(E8=E7,0,1)*'Time constants'!C5+IF(D8=D7,0,1)*'Time constants'!$C$4 -> 5.081666667 | J8: =IF(IF(G8="",0,G8/'Time constants'!$C$6)+IF(H8="",0,H8)+IF(I8="",0,I8)=0,"",IF(G8="",0,G8/'Time constants'!$C$6)+IF(H8="",0,H8)+IF(I8="",0,I8)) -> 152.0204422 | K8: =IF(J8="","",J8/60+K7) -> 6.674475574 | L8: =IF(C8="","",TEXT(C8,"0") &", S2 = " & TEXT(F8,"0") & "deg " & TEXT(D8,"0.0") & " meV, " & TEXT(E8,"0.0") & " Hz, " & "T=" & TEXT(B8,"0.00") & " K, " &TEXT(G8,"0.00") & " C") -> Sample 2 Name, S2 = -35deg 25.0 meV, 300.0 Hz, T=5.00 K, 12.00 C
A9: Example 3 | B9: 5 | C9: Sample 3 Name | D9: 15 | E9: 360 | F9: -60 | G9: 12 | H9: =IF(IF($B9>0,$B9-INDEX($B:$B,_xlfn.AGGREGATE(14,6,1/(LEN($B$1:INDEX(B:B,ROW()-1))>0)*ROW(B:B),1)),"")<>"", ABS(IF($B9>0,$B9-INDEX($B:$B,_xlfn.AGGREGATE(14,6,1/(LEN($B$1:INDEX(B:B,ROW()-1))>0)*ROW(B:B),1)),""))/'Time constants'!$C$8+IF(B9=B8,0,1)*'Time constants'!$C$7,"") -> 0 | I9: =IF(F9=F8,0,1)*'Time constants'!C7+IF(E9=E8,0,1)*'Time constants'!C6+IF(D9=D8,0,1)*'Time constants'!$C$4 -> 8.081666667 | J9: =IF(IF(G9="",0,G9/'Time constants'!$C$6)+IF(H9="",0,H9)+IF(I9="",0,I9)=0,"",IF(G9="",0,G9/'Time constants'!$C$6)+IF(H9="",0,H9)+IF(I9="",0,I9)) -> 155.0204422 | K9: 9.258149611 | L9: Sample 3 Name, S2 = -60deg 15.0 meV, 360.0 Hz, T=5.00 K, 12.00 C
A10: Example 4 | B10: 120 | C10: Sample 1 Name | D10: 15 | E10: 420 | F10: -60 | G10: 24 | H10: =IF(IF($B10>0,$B10-INDEX($B:$B,_xlfn.AGGREGATE(14,6,1/(LEN($B$1:INDEX(B:B,ROW()-1))>0)*ROW(B:B),1)),"")<>"", ABS(IF($B10>0,$B10-INDEX($B:$B,_xlfn.AGGREGATE(14,6,1/(LEN($B$1:INDEX(B:B,ROW()-1))>0)*ROW(B:B),1)),""))/'Time constants'!$C$8+IF(B10=B9,0,1)*'Time constants'!$C$7,"") -> 38.71428571 | I10: =IF(F10=F9,0,1)*'Time constants'!C8+IF(E10=E9,0,1)*'Time constants'!C7+IF(D10=D9,0,1)*'Time constants'!$C$4 -> 3 | J10: =IF(IF(G10="",0,G10/'Time constants'!$C$6)+IF(H10="",0,H10)+IF(I10="",0,I10)=0,"",IF(G10="",0,G10/'Time constants'!$C$6)+IF(H10="",0,H10)+IF(I10="",0,I10)) -> 335.5918367 | K10: 14.85134689 | L10: Sample 1 Name, S2 = -60deg 15.0 meV, 420.0 Hz, T=120.00 K, 24.00 C
A11: Example 5 | B11: 120 | C11: Sample 2 Name | D11: 3.8 | E11: 180 | F11: -85 | G11: 24 | H11: =IF(IF($B11>0,$B11-INDEX($B:$B,_xlfn.AGGREGATE(14,6,1/(LEN($B$1:INDEX(B:B,ROW()-1))>0)*ROW(B:B),1)),"")<>"", ABS(IF($B11>0,$B11-INDEX($B:$B,_xlfn.AGGREGATE(14,6,1/(LEN($B$1:INDEX(B:B,ROW()-1))>0)*ROW(B:B),1)),""))/'Time constants'!$C$8+IF(B11=B10,0,1)*'Time constants'!$C$7,"") -> 0 | I11: =IF(F11=F10,0,1)*'Time constants'!C9+IF(E11=E10,0,1)*'Time constants'!C8+IF(D11=D10,0,1)*'Time constants'!$C$4 -> 8.22 | J11: =IF(IF(G11="",0,G11/'Time constants'!$C$6)+IF(H11="",0,H11)+IF(I11="",0,I11)=0,"",IF(G11="",0,G11/'Time constants'!$C$6)+IF(H11="",0,H11)+IF(I11="",0,I11)) -> 302.097551 | K11: 19.88630607 | L11: Sample 2 Name, S2 = -85deg 3.8 meV, 180.0 Hz, T=120.00 K, 24.00 C
A12: Example 6 | B12: 120 | C12: Sample 3 Name | D12: 3.8 | E12: 240 | F12: -85 | G12: 24 | H12: =IF(IF($B12>0,$B12-INDEX($B:$B,_xlfn.AGGREGATE(14,6,1/(LEN($B$1:INDEX(B:B,ROW()-1))>0)*ROW(B:B),1)),"")<>"", ABS(IF($B12>0,$B12-INDEX($B:$B,_xlfn.AGGREGATE(14,6,1/(LEN($B$1:INDEX(B:B,ROW()-1))>0)*ROW(B:B),1)),""))/'Time constants'!$C$8+IF(B12=B11,0,1)*'Time constants'!$C$7,"") -> 0 | I12: =IF(F12=F11,0,1)*'Time constants'!C10+IF(E12=E11,0,1)*'Time constants'!C9+IF(D12=D11,0,1)*'Time constants'!$C$4 -> 0 | J12: =IF(IF(G12="",0,G12/'Time constants'!$C$6)+IF(H12="",0,H12)+IF(I12="",0,I12)=0,"",IF(G12="",0,G12/'Time constants'!$C$6)+IF(H12="",0,H12)+IF(I12="",0,I12)) -> 293.877551 | K12: 24.78426526 | L12: Sample 3 Name, S2 = -85deg 3.8 meV, 240.0 Hz, T=120.00 K, 24.00 C
H13: =IF(IF($B13>0,$B13-INDEX($B:$B,_xlfn.AGGREGATE(14,6,1/(LEN($B$1:INDEX(B:B,ROW()-1))>0)*ROW(B:B),1)),"")<>"", ABS(IF($B13>0,$B13-INDEX($B:$B,_xlfn.AGGREGATE(14,6,1/(LEN($B$1:INDEX(B:B,ROW()-1))>0)*ROW(B:B),1)),""))/'Time constants'!$C$8+IF(B13=B12,0,1)*'Time constants'!$C$7,"") ->  | I13: =IF(F13=F12,0,1)*'Time constants'!C11+IF(E13=E12,0,1)*'Time constants'!C10+IF(D13=D12,0,1)*'Time constants'!$C$4 -> 5 | J13: =IF(IF(G13="",0,G13/'Time constants'!$C$6)+IF(H13="",0,H13)+IF(I13="",0,I13)=0,"",IF(G13="",0,G13/'Time constants'!$C$6)+IF(H13="",0,H13)+IF(I13="",0,I13)) -> 5 | K13: 24.86759859
H14: =IF(IF($B14>0,$B14-INDEX($B:$B,_xlfn.AGGREGATE(14,6,1/(LEN($B$1:INDEX(B:B,ROW()-1))>0)*ROW(B:B),1)),"")<>"", ABS(IF($B14>0,$B14-INDEX($B:$B,_xlfn.AGGREGATE(14,6,1/(LEN($B$1:INDEX(B:B,ROW()-1))>0)*ROW(B:B),1)),""))/'Time constants'!$C$8+IF(B14=B13,0,1)*'Time constants'!$C$7,"") ->  | I14: =IF(F14=F13,0,1)*'Time constants'!C12+IF(E14=E13,0,1)*'Time constants'!C11+IF(D14=D13,0,1)*'Time constants'!$C$4 -> 0 | J14: =IF(IF(G14="",0,G14/'Time constants'!$C$6)+IF(H14="",0,H14)+IF(I14="",0,I14)=0,"",IF(G14="",0,G14/'Time constants'!$C$6)+IF(H14="",0,H14)+IF(I14="",0,I14)) -> 
H15: =IF(IF($B15>0,$B15-INDEX($B:$B,_xlfn.AGGREGATE(14,6,1/(LEN($B$1:INDEX(B:B,ROW()-1))>0)*ROW(B:B),1)),"")<>"", ABS(IF($B15>0,$B15-INDEX($B:$B,_xlfn.AGGREGATE(14,6,1/(LEN($B$1:INDEX(B:B,ROW()-1))>0)*ROW(B:B),1)),""))/'Time constants'!$C$8+IF(B15=B14,0,1)*'Time constants'!$C$7,"") ->  | I15: =IF(F15=F14,0,1)*'Time constants'!C13+IF(E15=E14,0,1)*'Time constants'!C12+IF(D15=D14,0,1)*'Time constants'!$C$4 -> 0 | J15: =IF(IF(G15="",0,G15/'Time constants'!$C$6)+IF(H15="",0,H15)+IF(I15="",0,I15)=0,"",IF(G15="",0,G15/'Time constants'!$C$6)+IF(H15="",0,H15)+IF(I15="",0,I15)) -> 
H16: =IF(IF($B16>0,$B16-INDEX($B:$B,_xlfn.AGGREGATE(14,6,1/(LEN($B$1:INDEX(B:B,ROW()-1))>0)*ROW(B:B),1)),"")<>"", ABS(IF($B16>0,$B16-INDEX($B:$B,_xlfn.AGGREGATE(14,6,1/(LEN($B$1:INDEX(B:B,ROW()-1))>0)*ROW(B:B),1)),""))/'Time constants'!$C$8+IF(B16=B15,0,1)*'Time constants'!$C$7,"") ->  | I16: =IF(OR(#REF!="High Resolution",#REF!="High Flux"),IF(#REF!=#REF!,0,1)*'Time constants'!#REF!+IF(D16=D15,0,1)*'Time constants'!$C$4,"") ->  | J16: =IF(IF(G16="",0,G16/'Time constants'!$C$6)+IF(H16="",0,H16)+IF(I16="",0,I16)=0,"",IF(G16="",0,G16/'Time constants'!$C$6)+IF(H16="",0,H16)+IF(I16="",0,I16)) ->  | L16: =IF(C16="","",TEXT(C16,"0") &", " & TEXT(#REF!,"0") & " " & TEXT(D16,"0.0") & " meV, " & "T=" & TEXT(B16,"0.00") & " K, " &TEXT(G16,"0.00") & "C") -> 
H17: =IF(IF($B17>0,$B17-INDEX($B:$B,_xlfn.AGGREGATE(14,6,1/(LEN($B$1:INDEX(B:B,ROW()-1))>0)*ROW(B:B),1)),"")<>"", ABS(IF($B17>0,$B17-INDEX($B:$B,_xlfn.AGGREGATE(14,6,1/(LEN($B$1:INDEX(B:B,ROW()-1))>0)*ROW(B:B),1)),""))/'Time constants'!$C$8+IF(B17=B16,0,1)*'Time constants'!$C$7,"") ->  | I17: =IF(OR(#REF!="High Resolution",#REF!="High Flux"),IF(#REF!=#REF!,0,1)*'Time constants'!#REF!+IF(D17=D16,0,1)*'Time constants'!$C$4,"") ->  | J17: =IF(IF(G17="",0,G17/'Time constants'!$C$6)+IF(H17="",0,H17)+IF(I17="",0,I17)=0,"",IF(G17="",0,G17/'Time constants'!$C$6)+IF(H17="",0,H17)+IF(I17="",0,I17)) ->  | L17: =IF(C17="","",TEXT(C17,"0") &", " & TEXT(#REF!,"0") & " " & TEXT(D17,"0.0") & " meV, " & "T=" & TEXT(B17,"0.00") & " K, " &TEXT(G17,"0.00") & "C") -> 
H18: =IF(IF($B18>0,$B18-INDEX($B:$B,_xlfn.AGGREGATE(14,6,1/(LEN($B$1:INDEX(B:B,ROW()-1))>0)*ROW(B:B),1)),"")<>"", ABS(IF($B18>0,$B18-INDEX($B:$B,_xlfn.AGGREGATE(14,6,1/(LEN($B$1:INDEX(B:B,ROW()-1))>0)*ROW(B:B),1)),""))/'Time constants'!$C$8+IF(B18=B17,0,1)*'Time constants'!$C$7,"") ->  | I18: =IF(OR(#REF!="High Resolution",#REF!="High Flux"),IF(#REF!=#REF!,0,1)*'Time constants'!#REF!+IF(D18=D17,0,1)*'Time constants'!$C$4,"") ->  | J18: =IF(IF(G18="",0,G18/'Time constants'!$C$6)+IF(H18="",0,H18)+IF(I18="",0,I18)=0,"",IF(G18="",0,G18/'Time constants'!$C$6)+IF(H18="",0,H18)+IF(I18="",0,I18)) ->  | L18: =IF(C18="","",TEXT(C18,"0") &", " & TEXT(#REF!,"0") & " " & TEXT(D18,"0.0") & " meV, " & "T=" & TEXT(B18,"0.00") & " K, " &TEXT(G18,"0.00") & "C") -> 
H19: =IF(IF($B19>0,$B19-INDEX($B:$B,_xlfn.AGGREGATE(14,6,1/(LEN($B$1:INDEX(B:B,ROW()-1))>0)*ROW(B:B),1)),"")<>"", ABS(IF($B19>0,$B19-INDEX($B:$B,_xlfn.AGGREGATE(14,6,1/(LEN($B$1:INDEX(B:B,ROW()-1))>0)*ROW(B:B),1)),""))/'Time constants'!$C$8+IF(B19=B18,0,1)*'Time constants'!$C$7,"") ->  | I19: =IF(OR(#REF!="High Resolution",#REF!="High Flux"),IF(#REF!=#REF!,0,1)*'Time constants'!#REF!+IF(D19=D18,0,1)*'Time constants'!$C$4,"") ->  | J19: =IF(IF(G19="",0,G19/'Time constants'!$C$6)+IF(H19="",0,H19)+IF(I19="",0,I19)=0,"",IF(G19="",0,G19/'Time constants'!$C$6)+IF(H19="",0,H19)+IF(I19="",0,I19)) ->  | K19: =IF(J19="","",J19/60+K18) ->  | L19: =IF(C19="","",TEXT(C19,"0") &", " & TEXT(#REF!,"0") & " " & TEXT(D19,"0.0") & " meV, " & "T=" & TEXT(B19,"0.00") & " K, " &TEXT(G19,"0.00") & "C") -> 
H20: =IF(IF($B20>0,$B20-INDEX($B:$B,_xlfn.AGGREGATE(14,6,1/(LEN($B$1:INDEX(B:B,ROW()-1))>0)*ROW(B:B),1)),"")<>"", ABS(IF($B20>0,$B20-INDEX($B:$B,_xlfn.AGGREGATE(14,6,1/(LEN($B$1:INDEX(B:B,ROW()-1))>0)*ROW(B:B),1)),""))/'Time constants'!$C$8+IF(B20=B19,0,1)*'Time constants'!$C$7,"") ->  | I20: =IF(OR(#REF!="High Resolution",#REF!="High Flux"),IF(#REF!=#REF!,0,1)*'Time constants'!#REF!+IF(D20=D19,0,1)*'Time constants'!$C$4,"") ->  | J20: =IF(IF(G20="",0,G20/'Time constants'!$C$6)+IF(H20="",0,H20)+IF(I20="",0,I20)=0,"",IF(G20="",0,G20/'Time constants'!$C$6)+IF(H20="",0,H20)+IF(I20="",0,I20)) ->  | L20: =IF(C20="","",TEXT(C20,"0") &", " & TEXT(#REF!,"0") & " " & TEXT(D20,"0.0") & " meV, " & "T=" & TEXT(B20,"0.00") & " K, " &TEXT(G20,"0.00") & "C") -> 
H21: =IF(IF($B21>0,$B21-INDEX($B:$B,_xlfn.AGGREGATE(14,6,1/(LEN($B$1:INDEX(B:B,ROW()-1))>0)*ROW(B:B),1)),"")<>"", ABS(IF($B21>0,$B21-INDEX($B:$B,_xlfn.AGGREGATE(14,6,1/(LEN($B$1:INDEX(B:B,ROW()-1))>0)*ROW(B:B),1)),""))/'Time constants'!$C$8+IF(B21=B20,0,1)*'Time constants'!$C$7,"") ->  | I21: =IF(OR(#REF!="High Resolution",#REF!="High Flux"),IF(#REF!=#REF!,0,1)*'Time constants'!#REF!+IF(D21=D20,0,1)*'Time constants'!$C$4,"") ->  | J21: =IF(IF(G21="",0,G21/'Time constants'!$C$6)+IF(H21="",0,H21)+IF(I21="",0,I21)=0,"",IF(G21="",0,G21/'Time constants'!$C$6)+IF(H21="",0,H21)+IF(I21="",0,I21)) ->  | L21: =IF(C21="","",TEXT(C21,"0") &", " & TEXT(#REF!,"0") & " " & TEXT(D21,"0.0") & " meV, " & "T=" & TEXT(B21,"0.00") & " K, " &TEXT(G21,"0.00") & "C") -> 
H22: =IF(IF($B22>0,$B22-INDEX($B:$B,_xlfn.AGGREGATE(14,6,1/(LEN($B$1:INDEX(B:B,ROW()-1))>0)*ROW(B:B),1)),"")<>"", ABS(IF($B22>0,$B22-INDEX($B:$B,_xlfn.AGGREGATE(14,6,1/(LEN($B$1:INDEX(B:B,ROW()-1))>0)*ROW(B:B),1)),""))/'Time constants'!$C$8+IF(B22=B21,0,1)*'Time constants'!$C$7,"") ->  | I22: =IF(OR(#REF!="High Resolution",#REF!="High Flux"),IF(#REF!=#REF!,0,1)*'Time constants'!#REF!+IF(D22=D21,0,1)*'Time constants'!$C$4,"") ->  | J22: =IF(IF(G22="",0,G22/'Time constants'!$C$6)+IF(H22="",0,H22)+IF(I22="",0,I22)=0,"",IF(G22="",0,G22/'Time constants'!$C$6)+IF(H22="",0,H22)+IF(I22="",0,I22)) ->  | L22: =IF(C22="","",TEXT(C22,"0") &", " & TEXT(#REF!,"0") & " " & TEXT(D22,"0.0") & " meV, " & "T=" & TEXT(B22,"0.00") & " K, " &TEXT(G22,"0.00") & "C") -> 
H23: =IF(IF($B23>0,$B23-INDEX($B:$B,_xlfn.AGGREGATE(14,6,1/(LEN($B$1:INDEX(B:B,ROW()-1))>0)*ROW(B:B),1)),"")<>"", ABS(IF($B23>0,$B23-INDEX($B:$B,_xlfn.AGGREGATE(14,6,1/(LEN($B$1:INDEX(B:B,ROW()-1))>0)*ROW(B:B),1)),""))/'Time constants'!$C$8+IF(B23=B22,0,1)*'Time constants'!$C$7,"") ->  | I23: =IF(OR(#REF!="High Resolution",#REF!="High Flux"),IF(#REF!=#REF!,0,1)*'Time constants'!#REF!+IF(D23=D22,0,1)*'Time constants'!$C$4,"") ->  | J23: =IF(IF(G23="",0,G23/'Time constants'!$C$6)+IF(H23="",0,H23)+IF(I23="",0,I23)=0,"",IF(G23="",0,G23/'Time constants'!$C$6)+IF(H23="",0,H23)+IF(I23="",0,I23)) ->  | L23: =IF(C23="","",TEXT(C23,"0") &", " & TEXT(#REF!,"0") & " " & TEXT(D23,"0.0") & " meV, " & "T=" & TEXT(B23,"0.00") & " K, " &TEXT(G23,"0.00") & "C") -> 
H24: =IF(IF($B24>0,$B24-INDEX($B:$B,_xlfn.AGGREGATE(14,6,1/(LEN($B$1:INDEX(B:B,ROW()-1))>0)*ROW(B:B),1)),"")<>"", ABS(IF($B24>0,$B24-INDEX($B:$B,_xlfn.AGGREGATE(14,6,1/(LEN($B$1:INDEX(B:B,ROW()-1))>0)*ROW(B:B),1)),""))/'Time constants'!$C$8+IF(B24=B23,0,1)*'Time constants'!$C$7,"") ->  | I24: =IF(OR(#REF!="High Resolution",#REF!="High Flux"),IF(#REF!=#REF!,0,1)*'Time constants'!#REF!+IF(D24=D23,0,1)*'Time constants'!$C$4,"") ->  | J24: =IF(IF(G24="",0,G24/'Time constants'!$C$6)+IF(H24="",0,H24)+IF(I24="",0,I24)=0,"",IF(G24="",0,G24/'Time constants'!$C$6)+IF(H24="",0,H24)+IF(I24="",0,I24)) ->  | L24: =IF(C24="","",TEXT(C24,"0") &", " & TEXT(#REF!,"0") & " " & TEXT(D24,"0.0") & " meV, " & "T=" & TEXT(B24,"0.00") & " K, " &TEXT(G24,"0.00") & "C") -> 
H25: =IF(IF($B25>0,$B25-INDEX($B:$B,_xlfn.AGGREGATE(14,6,1/(LEN($B$1:INDEX(B:B,ROW()-1))>0)*ROW(B:B),1)),"")<>"", ABS(IF($B25>0,$B25-INDEX($B:$B,_xlfn.AGGREGATE(14,6,1/(LEN($B$1:INDEX(B:B,ROW()-1))>0)*ROW(B:B),1)),""))/'Time constants'!$C$8+IF(B25=B24,0,1)*'Time constants'!$C$7,"") ->  | I25: =IF(OR(#REF!="High Resolution",#REF!="High Flux"),IF(#REF!=#REF!,0,1)*'Time constants'!#REF!+IF(D25=D24,0,1)*'Time constants'!$C$4,"") ->  | J25: =IF(IF(G25="",0,G25/'Time constants'!$C$6)+IF(H25="",0,H25)+IF(I25="",0,I25)=0,"",IF(G25="",0,G25/'Time constants'!$C$6)+IF(H25="",0,H25)+IF(I25="",0,I25)) ->  | L25: =IF(C25="","",TEXT(C25,"0") &", " & TEXT(#REF!,"0") & " " & TEXT(D25,"0.0") & " meV, " & "T=" & TEXT(B25,"0.00") & " K, " &TEXT(G25,"0.00") & "C") -> 
H26: =IF(IF($B26>0,$B26-INDEX($B:$B,_xlfn.AGGREGATE(14,6,1/(LEN($B$1:INDEX(B:B,ROW()-1))>0)*ROW(B:B),1)),"")<>"", ABS(IF($B26>0,$B26-INDEX($B:$B,_xlfn.AGGREGATE(14,6,1/(LEN($B$1:INDEX(B:B,ROW()-1))>0)*ROW(B:B),1)),""))/'Time constants'!$C$8+IF(B26=B25,0,1)*'Time constants'!$C$7,"") ->  | I26: =IF(OR(#REF!="High Resolution",#REF!="High Flux"),IF(#REF!=#REF!,0,1)*'Time constants'!#REF!+IF(D26=D25,0,1)*'Time constants'!$C$4,"") ->  | J26: =IF(IF(G26="",0,G26/'Time constants'!$C$6)+IF(H26="",0,H26)+IF(I26="",0,I26)=0,"",IF(G26="",0,G26/'Time constants'!$C$6)+IF(H26="",0,H26)+IF(I26="",0,I26)) ->  | L26: =IF(C26="","",TEXT(C26,"0") &", " & TEXT(#REF!,"0") & " " & TEXT(D26,"0.0") & " meV, " & "T=" & TEXT(B26,"0.00") & " K, " &TEXT(G26,"0.00") & "C") -> 
H27: =IF(IF($B27>0,$B27-INDEX($B:$B,_xlfn.AGGREGATE(14,6,1/(LEN($B$1:INDEX(B:B,ROW()-1))>0)*ROW(B:B),1)),"")<>"", ABS(IF($B27>0,$B27-INDEX($B:$B,_xlfn.AGGREGATE(14,6,1/(LEN($B$1:INDEX(B:B,ROW()-1))>0)*ROW(B:B),1)),""))/'Time constants'!$C$8+IF(B27=B26,0,1)*'Time constants'!$C$7,"") ->  | I27: =IF(OR(#REF!="High Resolution",#REF!="High Flux"),IF(#REF!=#REF!,0,1)*'Time constants'!#REF!+IF(D27=D26,0,1)*'Time constants'!$C$4,"") ->  | J27: =IF(IF(G27="",0,G27/'Time constants'!$C$6)+IF(H27="",0,H27)+IF(I27="",0,I27)=0,"",IF(G27="",0,G27/'Time constants'!$C$6)+IF(H27="",0,H27)+IF(I27="",0,I27)) ->  | L27: =IF(C27="","",TEXT(C27,"0") &", " & TEXT(#REF!,"0") & " " & TEXT(D27,"0.0") & " meV, " & "T=" & TEXT(B27,"0.00") & " K, " &TEXT(G27,"0.00") & "C") -> 
H28: =IF(IF($B28>0,$B28-INDEX($B:$B,_xlfn.AGGREGATE(14,6,1/(LEN($B$1:INDEX(B:B,ROW()-1))>0)*ROW(B:B),1)),"")<>"", ABS(IF($B28>0,$B28-INDEX($B:$B,_xlfn.AGGREGATE(14,6,1/(LEN($B$1:INDEX(B:B,ROW()-1))>0)*ROW(B:B),1)),""))/'Time constants'!$C$8+IF(B28=B27,0,1)*'Time constants'!$C$7,"") ->  | I28: =IF(OR(#REF!="High Resolution",#REF!="High Flux"),IF(#REF!=#REF!,0,1)*'Time constants'!#REF!+IF(D28=D27,0,1)*'Time constants'!$C$4,"") ->  | J28: =IF(IF(G28="",0,G28/'Time constants'!$C$6)+IF(H28="",0,H28)+IF(I28="",0,I28)=0,"",IF(G28="",0,G28/'Time constants'!$C$6)+IF(H28="",0,H28)+IF(I28="",0,I28)) ->  | L28: =IF(C28="","",TEXT(C28,"0") &", " & TEXT(#REF!,"0") & " " & TEXT(D28,"0.0") & " meV, " & "T=" & TEXT(B28,"0.00") & " K, " &TEXT(G28,"0.00") & "C") -> 
H29: =IF(IF($B29>0,$B29-INDEX($B:$B,_xlfn.AGGREGATE(14,6,1/(LEN($B$1:INDEX(B:B,ROW()-1))>0)*ROW(B:B),1)),"")<>"", ABS(IF($B29>0,$B29-INDEX($B:$B,_xlfn.AGGREGATE(14,6,1/(LEN($B$1:INDEX(B:B,ROW()-1))>0)*ROW(B:B),1)),""))/'Time constants'!$C$8+IF(B29=B28,0,1)*'Time constants'!$C$7,"") ->  | I29: =IF(OR(#REF!="High Resolution",#REF!="High Flux"),IF(#REF!=#REF!,0,1)*'Time constants'!#REF!+IF(D29=D28,0,1)*'Time constants'!$C$4,"") ->  | J29: =IF(IF(G29="",0,G29/'Time constants'!$C$6)+IF(H29="",0,H29)+IF(I29="",0,I29)=0,"",IF(G29="",0,G29/'Time constants'!$C$6)+IF(H29="",0,H29)+IF(I29="",0,I29)) ->  | L29: =IF(C29="","",TEXT(C29,"0") &", " & TEXT(#REF!,"0") & " " & TEXT(D29,"0.0") & " meV, " & "T=" & TEXT(B29,"0.00") & " K, " &TEXT(G29,"0.00") & "C") -> 
H30: =IF(IF($B30>0,$B30-INDEX($B:$B,_xlfn.AGGREGATE(14,6,1/(LEN($B$1:INDEX(B:B,ROW()-1))>0)*ROW(B:B),1)),"")<>"", ABS(IF($B30>0,$B30-INDEX($B:$B,_xlfn.AGGREGATE(14,6,1/(LEN($B$1:INDEX(B:B,ROW()-1))>0)*ROW(B:B),1)),""))/'Time constants'!$C$8+IF(B30=B29,0,1)*'Time constants'!$C$7,"") ->  | I30: =IF(OR(#REF!="High Resolution",#REF!="High Flux"),IF(#REF!=#REF!,0,1)*'Time constants'!#REF!+IF(D30=D29,0,1)*'Time constants'!$C$4,"") ->  | J30: =IF(IF(G30="",0,G30/'Time constants'!$C$6)+IF(H30="",0,H30)+IF(I30="",0,I30)=0,"",IF(G30="",0,G30/'Time constants'!$C$6)+IF(H30="",0,H30)+IF(I30="",0,I30)) ->  | L30: =IF(C30="","",TEXT(C30,"0") &", " & TEXT(#REF!,"0") & " " & TEXT(D30,"0.0") & " meV, " & "T=" & TEXT(B30,"0.00") & " K, " &TEXT(G30,"0.00") & "C") -> 
H31: =IF(IF($B31>0,$B31-INDEX($B:$B,_xlfn.AGGREGATE(14,6,1/(LEN($B$1:INDEX(B:B,ROW()-1))>0)*ROW(B:B),1)),"")<>"", ABS(IF($B31>0,$B31-INDEX($B:$B,_xlfn.AGGREGATE(14,6,1/(LEN($B$1:INDEX(B:B,ROW()-1))>0)*ROW(B:B),1)),""))/'Time constants'!$C$8+IF(B31=B30,0,1)*'Time constants'!$C$7,"") ->  | I31: =IF(OR(#REF!="High Resolution",#REF!="High Flux"),IF(#REF!=#REF!,0,1)*'Time constants'!#REF!+IF(D31=D30,0,1)*'Time constants'!$C$4,"") ->  | J31: =IF(IF(G31="",0,G31/'Time constants'!$C$6)+IF(H31="",0,H31)+IF(I31="",0,I31)=0,"",IF(G31="",0,G31/'Time constants'!$C$6)+IF(H31="",0,H31)+IF(I31="",0,I31)) ->  | L31: =IF(C31="","",TEXT(C31,"0") &", " & TEXT(#REF!,"0") & " " & TEXT(D31,"0.0") & " meV, " & "T=" & TEXT(B31,"0.00") & " K, " &TEXT(G31,"0.00") & "C") -> 
H32: =IF(IF($B32>0,$B32-INDEX($B:$B,_xlfn.AGGREGATE(14,6,1/(LEN($B$1:INDEX(B:B,ROW()-1))>0)*ROW(B:B),1)),"")<>"", ABS(IF($B32>0,$B32-INDEX($B:$B,_xlfn.AGGREGATE(14,6,1/(LEN($B$1:INDEX(B:B,ROW()-1))>0)*ROW(B:B),1)),""))/'Time constants'!$C$8+IF(B32=B31,0,1)*'Time constants'!$C$7,"") ->  | I32: =IF(OR(#REF!="High Resolution",#REF!="High Flux"),IF(#REF!=#REF!,0,1)*'Time constants'!#REF!+IF(D32=D31,0,1)*'Time constants'!$C$4,"") ->  | J32: =IF(IF(G32="",0,G32/'Time constants'!$C$6)+IF(H32="",0,H32)+IF(I32="",0,I32)=0,"",IF(G32="",0,G32/'Time constants'!$C$6)+IF(H32="",0,H32)+IF(I32="",0,I32)) ->  | L32: =IF(C32="","",TEXT(C32,"0") &", " & TEXT(#REF!,"0") & " " & TEXT(D32,"0.0") & " meV, " & "T=" & TEXT(B32,"0.00") & " K, " &TEXT(G32,"0.00") & "C") -> 
H33: =IF(IF($B33>0,$B33-INDEX($B:$B,_xlfn.AGGREGATE(14,6,1/(LEN($B$1:INDEX(B:B,ROW()-1))>0)*ROW(B:B),1)),"")<>"", ABS(IF($B33>0,$B33-INDEX($B:$B,_xlfn.AGGREGATE(14,6,1/(LEN($B$1:INDEX(B:B,ROW()-1))>0)*ROW(B:B),1)),""))/'Time constants'!$C$8+IF(B33=B32,0,1)*'Time constants'!$C$7,"") ->  | I33: =IF(OR(#REF!="High Resolution",#REF!="High Flux"),IF(#REF!=#REF!,0,1)*'Time constants'!#REF!+IF(D33=D32,0,1)*'Time constants'!$C$4,"") ->  | J33: =IF(IF(G33="",0,G33/'Time constants'!$C$6)+IF(H33="",0,H33)+IF(I33="",0,I33)=0,"",IF(G33="",0,G33/'Time constants'!$C$6)+IF(H33="",0,H33)+IF(I33="",0,I33)) ->  | L33: =IF(C33="","",TEXT(C33,"0") &", " & TEXT(#REF!,"0") & " " & TEXT(D33,"0.0") & " meV, " & "T=" & TEXT(B33,"0.00") & " K, " &TEXT(G33,"0.00") & "C") -> 
H34: =IF(IF($B34>0,$B34-INDEX($B:$B,_xlfn.AGGREGATE(14,6,1/(LEN($B$1:INDEX(B:B,ROW()-1))>0)*ROW(B:B),1)),"")<>"", ABS(IF($B34>0,$B34-INDEX($B:$B,_xlfn.AGGREGATE(14,6,1/(LEN($B$1:INDEX(B:B,ROW()-1))>0)*ROW(B:B),1)),""))/'Time constants'!$C$8+IF(B34=B33,0,1)*'Time constants'!$C$7,"") ->  | I34: =IF(OR(#REF!="High Resolution",#REF!="High Flux"),IF(#REF!=#REF!,0,1)*'Time constants'!#REF!+IF(D34=D33,0,1)*'Time constants'!$C$4,"") ->  | J34: =IF(IF(G34="",0,G34/'Time constants'!$C$6)+IF(H34="",0,H34)+IF(I34="",0,I34)=0,"",IF(G34="",0,G34/'Time constants'!$C$6)+IF(H34="",0,H34)+IF(I34="",0,I34)) ->  | L34: =IF(C34="","",TEXT(C34,"0") &", " & TEXT(#REF!,"0") & " " & TEXT(D34,"0.0") & " meV, " & "T=" & TEXT(B34,"0.00") & " K, " &TEXT(G34,"0.00") & "C") -> 
H35: =IF(IF($B35>0,$B35-INDEX($B:$B,_xlfn.AGGREGATE(14,6,1/(LEN($B$1:INDEX(B:B,ROW()-1))>0)*ROW(B:B),1)),"")<>"", ABS(IF($B35>0,$B35-INDEX($B:$B,_xlfn.AGGREGATE(14,6,1/(LEN($B$1:INDEX(B:B,ROW()-1))>0)*ROW(B:B),1)),""))/'Time constants'!$C$8+IF(B35=B34,0,1)*'Time constants'!$C$7,"") ->  | I35: =IF(OR(#REF!="High Resolution",#REF!="High Flux"),IF(#REF!=#REF!,0,1)*'Time constants'!#REF!+IF(D35=D34,0,1)*'Time constants'!$C$4,"") ->  | J35: =IF(IF(G35="",0,G35/'Time constants'!$C$6)+IF(H35="",0,H35)+IF(I35="",0,I35)=0,"",IF(G35="",0,G35/'Time constants'!$C$6)+IF(H35="",0,H35)+IF(I35="",0,I35)) ->  | L35: =IF(C35="","",TEXT(C35,"0") &", " & TEXT(#REF!,"0") & " " & TEXT(D35,"0.0") & " meV, " & "T=" & TEXT(B35,"0.00") & " K, " &TEXT(G35,"0.00") & "C") -> 
H36: =IF(IF($B36>0,$B36-INDEX($B:$B,_xlfn.AGGREGATE(14,6,1/(LEN($B$1:INDEX(B:B,ROW()-1))>0)*ROW(B:B),1)),"")<>"", ABS(IF($B36>0,$B36-INDEX($B:$B,_xlfn.AGGREGATE(14,6,1/(LEN($B$1:INDEX(B:B,ROW()-1))>0)*ROW(B:B),1)),""))/'Time constants'!$C$8+IF(B36=B35,0,1)*'Time constants'!$C$7,"") ->  | I36: =IF(OR(#REF!="High Resolution",#REF!="High Flux"),IF(#REF!=#REF!,0,1)*'Time constants'!#REF!+IF(D36=D35,0,1)*'Time constants'!$C$4,"") ->  | J36: =IF(IF(G36="",0,G36/'Time constants'!$C$6)+IF(H36="",0,H36)+IF(I36="",0,I36)=0,"",IF(G36="",0,G36/'Time constants'!$C$6)+IF(H36="",0,H36)+IF(I36="",0,I36)) ->  | L36: =IF(C36="","",TEXT(C36,"0") &", " & TEXT(#REF!,"0") & " " & TEXT(D36,"0.0") & " meV, " & "T=" & TEXT(B36,"0.00") & " K, " &TEXT(G36,"0.00") & "C") -> 
H37: =IF(IF($B37>0,$B37-INDEX($B:$B,_xlfn.AGGREGATE(14,6,1/(LEN($B$1:INDEX(B:B,ROW()-1))>0)*ROW(B:B),1)),"")<>"", ABS(IF($B37>0,$B37-INDEX($B:$B,_xlfn.AGGREGATE(14,6,1/(LEN($B$1:INDEX(B:B,ROW()-1))>0)*ROW(B:B),1)),""))/'Time constants'!$C$8+IF(B37=B36,0,1)*'Time constants'!$C$7,"") ->  | I37: =IF(OR(#REF!="High Resolution",#REF!="High Flux"),IF(#REF!=#REF!,0,1)*'Time constants'!#REF!+IF(D37=D36,0,1)*'Time constants'!$C$4,"") ->  | J37: =IF(IF(G37="",0,G37/'Time constants'!$C$6)+IF(H37="",0,H37)+IF(I37="",0,I37)=0,"",IF(G37="",0,G37/'Time constants'!$C$6)+IF(H37="",0,H37)+IF(I37="",0,I37)) ->  | L37: =IF(C37="","",TEXT(C37,"0") &", " & TEXT(#REF!,"0") & " " & TEXT(D37,"0.0") & " meV, " & "T=" & TEXT(B37,"0.00") & " K, " &TEXT(G37,"0.00") & "C") -> 
H38: =IF(IF($B38>0,$B38-INDEX($B:$B,_xlfn.AGGREGATE(14,6,1/(LEN($B$1:INDEX(B:B,ROW()-1))>0)*ROW(B:B),1)),"")<>"", ABS(IF($B38>0,$B38-INDEX($B:$B,_xlfn.AGGREGATE(14,6,1/(LEN($B$1:INDEX(B:B,ROW()-1))>0)*ROW(B:B),1)),""))/'Time constants'!$C$8+IF(B38=B37,0,1)*'Time constants'!$C$7,"") ->  | I38: =IF(OR(#REF!="High Resolution",#REF!="High Flux"),IF(#REF!=#REF!,0,1)*'Time constants'!#REF!+IF(D38=D37,0,1)*'Time constants'!$C$4,"") ->  | J38: =IF(IF(G38="",0,G38/'Time constants'!$C$6)+IF(H38="",0,H38)+IF(I38="",0,I38)=0,"",IF(G38="",0,G38/'Time constants'!$C$6)+IF(H38="",0,H38)+IF(I38="",0,I38)) ->  | L38: =IF(C38="","",TEXT(C38,"0") &", " & TEXT(#REF!,"0") & " " & TEXT(D38,"0.0") & " meV, " & "T=" & TEXT(B38,"0.00") & " K, " &TEXT(G38,"0.00") & "C") -> 
H39: =IF(IF($B39>0,$B39-INDEX($B:$B,_xlfn.AGGREGATE(14,6,1/(LEN($B$1:INDEX(B:B,ROW()-1))>0)*ROW(B:B),1)),"")<>"", ABS(IF($B39>0,$B39-INDEX($B:$B,_xlfn.AGGREGATE(14,6,1/(LEN($B$1:INDEX(B:B,ROW()-1))>0)*ROW(B:B),1)),""))/'Time constants'!$C$8+IF(B39=B38,0,1)*'Time constants'!$C$7,"") ->  | I39: =IF(OR(#REF!="High Resolution",#REF!="High Flux"),IF(#REF!=#REF!,0,1)*'Time constants'!#REF!+IF(D39=D38,0,1)*'Time constants'!$C$4,"") ->  | J39: =IF(IF(G39="",0,G39/'Time constants'!$C$6)+IF(H39="",0,H39)+IF(I39="",0,I39)=0,"",IF(G39="",0,G39/'Time constants'!$C$6)+IF(H39="",0,H39)+IF(I39="",0,I39)) ->  | L39: =IF(C39="","",TEXT(C39,"0") &", " & TEXT(#REF!,"0") & " " & TEXT(D39,"0.0") & " meV, " & "T=" & TEXT(B39,"0.00") & " K, " &TEXT(G39,"0.00") & "C") -> 
H40: =IF(IF($B40>0,$B40-INDEX($B:$B,_xlfn.AGGREGATE(14,6,1/(LEN($B$1:INDEX(B:B,ROW()-1))>0)*ROW(B:B),1)),"")<>"", ABS(IF($B40>0,$B40-INDEX($B:$B,_xlfn.AGGREGATE(14,6,1/(LEN($B$1:INDEX(B:B,ROW()-1))>0)*ROW(B:B),1)),""))/'Time constants'!$C$8+IF(B40=B39,0,1)*'Time constants'!$C$7,"") ->  | I40: =IF(OR(#REF!="High Resolution",#REF!="High Flux"),IF(#REF!=#REF!,0,1)*'Time constants'!#REF!+IF(D40=D39,0,1)*'Time constants'!$C$4,"") ->  | J40: =IF(IF(G40="",0,G40/'Time constants'!$C$6)+IF(H40="",0,H40)+IF(I40="",0,I40)=0,"",IF(G40="",0,G40/'Time constants'!$C$6)+IF(H40="",0,H40)+IF(I40="",0,I40)) ->  | L40: =IF(C40="","",TEXT(C40,"0") &", " & TEXT(#REF!,"0") & " " & TEXT(D40,"0.0") & " meV, " & "T=" & TEXT(B40,"0.00") & " K, " &TEXT(G40,"0.00") & "C") -> 
H41: =IF(IF($B41>0,$B41-INDEX($B:$B,_xlfn.AGGREGATE(14,6,1/(LEN($B$1:INDEX(B:B,ROW()-1))>0)*ROW(B:B),1)),"")<>"", ABS(IF($B41>0,$B41-INDEX($B:$B,_xlfn.AGGREGATE(14,6,1/(LEN($B$1:INDEX(B:B,ROW()-1))>0)*ROW(B:B),1)),""))/'Time constants'!$C$8+IF(B41=B40,0,1)*'Time constants'!$C$7,"") ->  | I41: =IF(OR(#REF!="High Resolution",#REF!="High Flux"),IF(#REF!=#REF!,0,1)*'Time constants'!#REF!+IF(D41=D40,0,1)*'Time constants'!$C$4,"") ->  | J41: =IF(IF(G41="",0,G41/'Time constants'!$C$6)+IF(H41="",0,H41)+IF(I41="",0,I41)=0,"",IF(G41="",0,G41/'Time constants'!$C$6)+IF(H41="",0,H41)+IF(I41="",0,I41)) ->  | L41: =IF(C41="","",TEXT(C41,"0") &", " & TEXT(#REF!,"0") & " " & TEXT(D41,"0.0") & " meV, " & "T=" & TEXT(B41,"0.00") & " K, " &TEXT(G41,"0.00") & "C") -> 
H42: =IF(IF($B42>0,$B42-INDEX($B:$B,_xlfn.AGGREGATE(14,6,1/(LEN($B$1:INDEX(B:B,ROW()-1))>0)*ROW(B:B),1)),"")<>"", ABS(IF($B42>0,$B42-INDEX($B:$B,_xlfn.AGGREGATE(14,6,1/(LEN($B$1:INDEX(B:B,ROW()-1))>0)*ROW(B:B),1)),""))/'Time constants'!$C$8+IF(B42=B41,0,1)*'Time constants'!$C$7,"") ->  | I42: =IF(OR(#REF!="High Resolution",#REF!="High Flux"),IF(#REF!=#REF!,0,1)*'Time constants'!#REF!+IF(D42=D41,0,1)*'Time constants'!$C$4,"") ->  | J42: =IF(IF(G42="",0,G42/'Time constants'!$C$6)+IF(H42="",0,H42)+IF(I42="",0,I42)=0,"",IF(G42="",0,G42/'Time constants'!$C$6)+IF(H42="",0,H42)+IF(I42="",0,I42)) ->  | L42: =IF(C42="","",TEXT(C42,"0") &", " & TEXT(#REF!,"0") & " " & TEXT(D42,"0.0") & " meV, " & "T=" & TEXT(B42,"0.00") & " K, " &TEXT(G42,"0.00") & "C") -> 
H43: =IF(IF($B43>0,$B43-INDEX($B:$B,_xlfn.AGGREGATE(14,6,1/(LEN($B$1:INDEX(B:B,ROW()-1))>0)*ROW(B:B),1)),"")<>"", ABS(IF($B43>0,$B43-INDEX($B:$B,_xlfn.AGGREGATE(14,6,1/(LEN($B$1:INDEX(B:B,ROW()-1))>0)*ROW(B:B),1)),""))/'Time constants'!$C$8+IF(B43=B42,0,1)*'Time constants'!$C$7,"") ->  | I43: =IF(OR(#REF!="High Resolution",#REF!="High Flux"),IF(#REF!=#REF!,0,1)*'Time constants'!#REF!+IF(D43=D42,0,1)*'Time constants'!$C$4,"") ->  | J43: =IF(IF(G43="",0,G43/'Time constants'!$C$6)+IF(H43="",0,H43)+IF(I43="",0,I43)=0,"",IF(G43="",0,G43/'Time constants'!$C$6)+IF(H43="",0,H43)+IF(I43="",0,I43)) ->  | L43: =IF(C43="","",TEXT(C43,"0") &", " & TEXT(#REF!,"0") & " " & TEXT(D43,"0.0") & " meV, " & "T=" & TEXT(B43,"0.00") & " K, " &TEXT(G43,"0.00") & "C") -> 
H44: =IF(IF($B44>0,$B44-INDEX($B:$B,_xlfn.AGGREGATE(14,6,1/(LEN($B$1:INDEX(B:B,ROW()-1))>0)*ROW(B:B),1)),"")<>"", ABS(IF($B44>0,$B44-INDEX($B:$B,_xlfn.AGGREGATE(14,6,1/(LEN($B$1:INDEX(B:B,ROW()-1))>0)*ROW(B:B),1)),""))/'Time constants'!$C$8+IF(B44=B43,0,1)*'Time constants'!$C$7,"") ->  | I44: =IF(OR(#REF!="High Resolution",#REF!="High Flux"),IF(#REF!=#REF!,0,1)*'Time constants'!#REF!+IF(D44=D43,0,1)*'Time constants'!$C$4,"") ->  | J44: =IF(IF(G44="",0,G44/'Time constants'!$C$6)+IF(H44="",0,H44)+IF(I44="",0,I44)=0,"",IF(G44="",0,G44/'Time constants'!$C$6)+IF(H44="",0,H44)+IF(I44="",0,I44)) ->  | L44: =IF(C44="","",TEXT(C44,"0") &", " & TEXT(#REF!,"0") & " " & TEXT(D44,"0.0") & " meV, " & "T=" & TEXT(B44,"0.00") & " K, " &TEXT(G44,"0.00") & "C") -> 
H45: =IF(IF($B45>0,$B45-INDEX($B:$B,_xlfn.AGGREGATE(14,6,1/(LEN($B$1:INDEX(B:B,ROW()-1))>0)*ROW(B:B),1)),"")<>"", ABS(IF($B45>0,$B45-INDEX($B:$B,_xlfn.AGGREGATE(14,6,1/(LEN($B$1:INDEX(B:B,ROW()-1))>0)*ROW(B:B),1)),""))/'Time constants'!$C$8+IF(B45=B44,0,1)*'Time constants'!$C$7,"") ->  | I45: =IF(OR(#REF!="High Resolution",#REF!="High Flux"),IF(#REF!=#REF!,0,1)*'Time constants'!#REF!+IF(D45=D44,0,1)*'Time constants'!$C$4,"") ->  | J45: =IF(IF(G45="",0,G45/'Time constants'!$C$6)+IF(H45="",0,H45)+IF(I45="",0,I45)=0,"",IF(G45="",0,G45/'Time constants'!$C$6)+IF(H45="",0,H45)+IF(I45="",0,I45)) ->  | L45: =IF(C45="","",TEXT(C45,"0") &", " & TEXT(#REF!,"0") & " " & TEXT(D45,"0.0") & " meV, " & "T=" & TEXT(B45,"0.00") & " K, " &TEXT(G45,"0.00") & "C") -> 
H46: =IF(IF($B46>0,$B46-INDEX($B:$B,_xlfn.AGGREGATE(14,6,1/(LEN($B$1:INDEX(B:B,ROW()-1))>0)*ROW(B:B),1)),"")<>"", ABS(IF($B46>0,$B46-INDEX($B:$B,_xlfn.AGGREGATE(14,6,1/(LEN($B$1:INDEX(B:B,ROW()-1))>0)*ROW(B:B),1)),""))/'Time constants'!$C$8+IF(B46=B45,0,1)*'Time constants'!$C$7,"") ->  | I46: =IF(OR(#REF!="High Resolution",#REF!="High Flux"),IF(#REF!=#REF!,0,1)*'Time constants'!#REF!+IF(D46=D45,0,1)*'Time constants'!$C$4,"") ->  | J46: =IF(IF(G46="",0,G46/'Time constants'!$C$6)+IF(H46="",0,H46)+IF(I46="",0,I46)=0,"",IF(G46="",0,G46/'Time constants'!$C$6)+IF(H46="",0,H46)+IF(I46="",0,I46)) ->  | L46: =IF(C46="","",TEXT(C46,"0") &", " & TEXT(#REF!,"0") & " " & TEXT(D46,"0.0") & " meV, " & "T=" & TEXT(B46,"0.00") & " K, " &TEXT(G46,"0.00") & "C") -> 
H47: =IF(IF($B47>0,$B47-INDEX($B:$B,_xlfn.AGGREGATE(14,6,1/(LEN($B$1:INDEX(B:B,ROW()-1))>0)*ROW(B:B),1)),"")<>"", ABS(IF($B47>0,$B47-INDEX($B:$B,_xlfn.AGGREGATE(14,6,1/(LEN($B$1:INDEX(B:B,ROW()-1))>0)*ROW(B:B),1)),""))/'Time constants'!$C$8+IF(B47=B46,0,1)*'Time constants'!$C$7,"") ->  | I47: =IF(OR(#REF!="High Resolution",#REF!="High Flux"),IF(#REF!=#REF!,0,1)*'Time constants'!#REF!+IF(D47=D46,0,1)*'Time constants'!$C$4,"") ->  | J47: =IF(IF(G47="",0,G47/'Time constants'!$C$6)+IF(H47="",0,H47)+IF(I47="",0,I47)=0,"",IF(G47="",0,G47/'Time constants'!$C$6)+IF(H47="",0,H47)+IF(I47="",0,I47)) ->  | L47: =IF(C47="","",TEXT(C47,"0") &", " & TEXT(#REF!,"0") & " " & TEXT(D47,"0.0") & " meV, " & "T=" & TEXT(B47,"0.00") & " K, " &TEXT(G47,"0.00") & "C") -> 
H48: =IF(IF($B48>0,$B48-INDEX($B:$B,_xlfn.AGGREGATE(14,6,1/(LEN($B$1:INDEX(B:B,ROW()-1))>0)*ROW(B:B),1)),"")<>"", ABS(IF($B48>0,$B48-INDEX($B:$B,_xlfn.AGGREGATE(14,6,1/(LEN($B$1:INDEX(B:B,ROW()-1))>0)*ROW(B:B),1)),""))/'Time constants'!$C$8+IF(B48=B47,0,1)*'Time constants'!$C$7,"") ->  | I48: =IF(OR(#REF!="High Resolution",#REF!="High Flux"),IF(#REF!=#REF!,0,1)*'Time constants'!#REF!+IF(D48=D47,0,1)*'Time constants'!$C$4,"") ->  | J48: =IF(IF(G48="",0,G48/'Time constants'!$C$6)+IF(H48="",0,H48)+IF(I48="",0,I48)=0,"",IF(G48="",0,G48/'Time constants'!$C$6)+IF(H48="",0,H48)+IF(I48="",0,I48)) ->  | L48: =IF(C48="","",TEXT(C48,"0") &", " & TEXT(#REF!,"0") & " " & TEXT(D48,"0.0") & " meV, " & "T=" & TEXT(B48,"0.00") & " K, " &TEXT(G48,"0.00") & "C") -> 
H49: =IF(IF($B49>0,$B49-INDEX($B:$B,_xlfn.AGGREGATE(14,6,1/(LEN($B$1:INDEX(B:B,ROW()-1))>0)*ROW(B:B),1)),"")<>"", ABS(IF($B49>0,$B49-INDEX($B:$B,_xlfn.AGGREGATE(14,6,1/(LEN($B$1:INDEX(B:B,ROW()-1))>0)*ROW(B:B),1)),""))/'Time constants'!$C$8+IF(B49=B48,0,1)*'Time constants'!$C$7,"") ->  | I49: =IF(OR(#REF!="High Resolution",#REF!="High Flux"),IF(#REF!=#REF!,0,1)*'Time constants'!#REF!+IF(D49=D48,0,1)*'Time constants'!$C$4,"") ->  | J49: =IF(IF(G49="",0,G49/'Time constants'!$C$6)+IF(H49="",0,H49)+IF(I49="",0,I49)=0,"",IF(G49="",0,G49/'Time constants'!$C$6)+IF(H49="",0,H49)+IF(I49="",0,I49)) ->  | L49: =IF(C49="","",TEXT(C49,"0") &", " & TEXT(#REF!,"0") & " " & TEXT(D49,"0.0") & " meV, " & "T=" & TEXT(B49,"0.00") & " K, " &TEXT(G49,"0.00") & "C") -> 
H50: =IF(IF($B50>0,$B50-INDEX($B:$B,_xlfn.AGGREGATE(14,6,1/(LEN($B$1:INDEX(B:B,ROW()-1))>0)*ROW(B:B),1)),"")<>"", ABS(IF($B50>0,$B50-INDEX($B:$B,_xlfn.AGGREGATE(14,6,1/(LEN($B$1:INDEX(B:B,ROW()-1))>0)*ROW(B:B),1)),""))/'Time constants'!$C$8+IF(B50=B49,0,1)*'Time constants'!$C$7,"") ->  | I50: =IF(OR(#REF!="High Resolution",#REF!="High Flux"),IF(#REF!=#REF!,0,1)*'Time constants'!#REF!+IF(D50=D49,0,1)*'Time constants'!$C$4,"") ->  | J50: =IF(IF(G50="",0,G50/'Time constants'!$C$6)+IF(H50="",0,H50)+IF(I50="",0,I50)=0,"",IF(G50="",0,G50/'Time constants'!$C$6)+IF(H50="",0,H50)+IF(I50="",0,I50)) ->  | L50: =IF(C50="","",TEXT(C50,"0") &", " & TEXT(#REF!,"0") & " " & TEXT(D50,"0.0") & " meV, " & "T=" & TEXT(B50,"0.00") & " K, " &TEXT(G50,"0.00") & "C") -> 
H51: =IF(IF($B51>0,$B51-INDEX($B:$B,_xlfn.AGGREGATE(14,6,1/(LEN($B$1:INDEX(B:B,ROW()-1))>0)*ROW(B:B),1)),"")<>"", ABS(IF($B51>0,$B51-INDEX($B:$B,_xlfn.AGGREGATE(14,6,1/(LEN($B$1:INDEX(B:B,ROW()-1))>0)*ROW(B:B),1)),""))/'Time constants'!$C$8+IF(B51=B50,0,1)*'Time constants'!$C$7,"") ->  | I51: =IF(OR(#REF!="High Resolution",#REF!="High Flux"),IF(#REF!=#REF!,0,1)*'Time constants'!#REF!+IF(D51=D50,0,1)*'Time constants'!$C$4,"") ->  | J51: =IF(IF(G51="",0,G51/'Time constants'!$C$6)+IF(H51="",0,H51)+IF(I51="",0,I51)=0,"",IF(G51="",0,G51/'Time constants'!$C$6)+IF(H51="",0,H51)+IF(I51="",0,I51)) ->  | L51: =IF(C51="","",TEXT(C51,"0") &", " & TEXT(#REF!,"0") & " " & TEXT(D51,"0.0") & " meV, " & "T=" & TEXT(B51,"0.00") & " K, " &TEXT(G51,"0.00") & "C") -> 
H52: =IF(IF($B52>0,$B52-INDEX($B:$B,_xlfn.AGGREGATE(14,6,1/(LEN($B$1:INDEX(B:B,ROW()-1))>0)*ROW(B:B),1)),"")<>"", ABS(IF($B52>0,$B52-INDEX($B:$B,_xlfn.AGGREGATE(14,6,1/(LEN($B$1:INDEX(B:B,ROW()-1))>0)*ROW(B:B),1)),""))/'Time constants'!$C$8+IF(B52=B51,0,1)*'Time constants'!$C$7,"") ->  | I52: =IF(OR(#REF!="High Resolution",#REF!="High Flux"),IF(#REF!=#REF!,0,1)*'Time constants'!#REF!+IF(D52=D51,0,1)*'Time constants'!$C$4,"") ->  | J52: =IF(IF(G52="",0,G52/'Time constants'!$C$6)+IF(H52="",0,H52)+IF(I52="",0,I52)=0,"",IF(G52="",0,G52/'Time constants'!$C$6)+IF(H52="",0,H52)+IF(I52="",0,I52)) ->  | L52: =IF(C52="","",TEXT(C52,"0") &", " & TEXT(#REF!,"0") & " " & TEXT(D52,"0.0") & " meV, " & "T=" & TEXT(B52,"0.00") & " K, " &TEXT(G52,"0.00") & "C") -> 
H53: =IF(IF($B53>0,$B53-INDEX($B:$B,_xlfn.AGGREGATE(14,6,1/(LEN($B$1:INDEX(B:B,ROW()-1))>0)*ROW(B:B),1)),"")<>"", ABS(IF($B53>0,$B53-INDEX($B:$B,_xlfn.AGGREGATE(14,6,1/(LEN($B$1:INDEX(B:B,ROW()-1))>0)*ROW(B:B),1)),""))/'Time constants'!$C$8+IF(B53=B52,0,1)*'Time constants'!$C$7,"") ->  | I53: =IF(OR(#REF!="High Resolution",#REF!="High Flux"),IF(#REF!=#REF!,0,1)*'Time constants'!#REF!+IF(D53=D52,0,1)*'Time constants'!$C$4,"") ->  | J53: =IF(IF(G53="",0,G53/'Time constants'!$C$6)+IF(H53="",0,H53)+IF(I53="",0,I53)=0,"",IF(G53="",0,G53/'Time constants'!$C$6)+IF(H53="",0,H53)+IF(I53="",0,I53)) ->  | L53: =IF(C53="","",TEXT(C53,"0") &", " & TEXT(#REF!,"0") & " " & TEXT(D53,"0.0") & " meV, " & "T=" & TEXT(B53,"0.00") & " K, " &TEXT(G53,"0.00") & "C") -> 
H54: =IF(IF($B54>0,$B54-INDEX($B:$B,_xlfn.AGGREGATE(14,6,1/(LEN($B$1:INDEX(B:B,ROW()-1))>0)*ROW(B:B),1)),"")<>"", ABS(IF($B54>0,$B54-INDEX($B:$B,_xlfn.AGGREGATE(14,6,1/(LEN($B$1:INDEX(B:B,ROW()-1))>0)*ROW(B:B),1)),""))/'Time constants'!$C$8+IF(B54=B53,0,1)*'Time constants'!$C$7,"") ->  | I54: =IF(OR(#REF!="High Resolution",#REF!="High Flux"),IF(#REF!=#REF!,0,1)*'Time constants'!#REF!+IF(D54=D53,0,1)*'Time constants'!$C$4,"") ->  | J54: =IF(IF(G54="",0,G54/'Time constants'!$C$6)+IF(H54="",0,H54)+IF(I54="",0,I54)=0,"",IF(G54="",0,G54/'Time constants'!$C$6)+IF(H54="",0,H54)+IF(I54="",0,I54)) ->  | L54: =IF(C54="","",TEXT(C54,"0") &", " & TEXT(#REF!,"0") & " " & TEXT(D54,"0.0") & " meV, " & "T=" & TEXT(B54,"0.00") & " K, " &TEXT(G54,"0.00") & "C") -> 
H55: =IF(IF($B55>0,$B55-INDEX($B:$B,_xlfn.AGGREGATE(14,6,1/(LEN($B$1:INDEX(B:B,ROW()-1))>0)*ROW(B:B),1)),"")<>"", ABS(IF($B55>0,$B55-INDEX($B:$B,_xlfn.AGGREGATE(14,6,1/(LEN($B$1:INDEX(B:B,ROW()-1))>0)*ROW(B:B),1)),""))/'Time constants'!$C$8+IF(B55=B54,0,1)*'Time constants'!$C$7,"") ->  | I55: =IF(OR(#REF!="High Resolution",#REF!="High Flux"),IF(#REF!=#REF!,0,1)*'Time constants'!#REF!+IF(D55=D54,0,1)*'Time constants'!$C$4,"") ->  | J55: =IF(IF(G55="",0,G55/'Time constants'!$C$6)+IF(H55="",0,H55)+IF(I55="",0,I55)=0,"",IF(G55="",0,G55/'Time constants'!$C$6)+IF(H55="",0,H55)+IF(I55="",0,I55)) ->  | L55: =IF(C55="","",TEXT(C55,"0") &", " & TEXT(#REF!,"0") & " " & TEXT(D55,"0.0") & " meV, " & "T=" & TEXT(B55,"0.00") & " K, " &TEXT(G55,"0.00") & "C") -> 
H56: =IF(IF($B56>0,$B56-INDEX($B:$B,_xlfn.AGGREGATE(14,6,1/(LEN($B$1:INDEX(B:B,ROW()-1))>0)*ROW(B:B),1)),"")<>"", ABS(IF($B56>0,$B56-INDEX($B:$B,_xlfn.AGGREGATE(14,6,1/(LEN($B$1:INDEX(B:B,ROW()-1))>0)*ROW(B:B),1)),""))/'Time constants'!$C$8+IF(B56=B55,0,1)*'Time constants'!$C$7,"") ->  | I56: =IF(OR(#REF!="High Resolution",#REF!="High Flux"),IF(#REF!=#REF!,0,1)*'Time constants'!#REF!+IF(D56=D55,0,1)*'Time constants'!$C$4,"") ->  | J56: =IF(IF(G56="",0,G56/'Time constants'!$C$6)+IF(H56="",0,H56)+IF(I56="",0,I56)=0,"",IF(G56="",0,G56/'Time constants'!$C$6)+IF(H56="",0,H56)+IF(I56="",0,I56)) ->  | L56: =IF(C56="","",TEXT(C56,"0") &", " & TEXT(#REF!,"0") & " " & TEXT(D56,"0.0") & " meV, " & "T=" & TEXT(B56,"0.00") & " K, " &TEXT(G56,"0.00") & "C") -> 
H57: =IF(IF($B57>0,$B57-INDEX($B:$B,_xlfn.AGGREGATE(14,6,1/(LEN($B$1:INDEX(B:B,ROW()-1))>0)*ROW(B:B),1)),"")<>"", ABS(IF($B57>0,$B57-INDEX($B:$B,_xlfn.AGGREGATE(14,6,1/(LEN($B$1:INDEX(B:B,ROW()-1))>0)*ROW(B:B),1)),""))/'Time constants'!$C$8+IF(B57=B56,0,1)*'Time constants'!$C$7,"") ->  | I57: =IF(OR(#REF!="High Resolution",#REF!="High Flux"),IF(#REF!=#REF!,0,1)*'Time constants'!#REF!+IF(D57=D56,0,1)*'Time constants'!$C$4,"") ->  | J57: =IF(IF(G57="",0,G57/'Time constants'!$C$6)+IF(H57="",0,H57)+IF(I57="",0,I57)=0,"",IF(G57="",0,G57/'Time constants'!$C$6)+IF(H57="",0,H57)+IF(I57="",0,I57)) ->  | L57: =IF(C57="","",TEXT(C57,"0") &", " & TEXT(#REF!,"0") & " " & TEXT(D57,"0.0") & " meV, " & "T=" & TEXT(B57,"0.00") & " K, " &TEXT(G57,"0.00") & "C") -> 
H58: =IF(IF($B58>0,$B58-INDEX($B:$B,_xlfn.AGGREGATE(14,6,1/(LEN($B$1:INDEX(B:B,ROW()-1))>0)*ROW(B:B),1)),"")<>"", ABS(IF($B58>0,$B58-INDEX($B:$B,_xlfn.AGGREGATE(14,6,1/(LEN($B$1:INDEX(B:B,ROW()-1))>0)*ROW(B:B),1)),""))/'Time constants'!$C$8+IF(B58=B57,0,1)*'Time constants'!$C$7,"") ->  | I58: =IF(OR(#REF!="High Resolution",#REF!="High Flux"),IF(#REF!=#REF!,0,1)*'Time constants'!#REF!+IF(D58=D57,0,1)*'Time constants'!$C$4,"") ->  | J58: =IF(IF(G58="",0,G58/'Time constants'!$C$6)+IF(H58="",0,H58)+IF(I58="",0,I58)=0,"",IF(G58="",0,G58/'Time constants'!$C$6)+IF(H58="",0,H58)+IF(I58="",0,I58)) ->  | L58: =IF(C58="","",TEXT(C58,"0") &", " & TEXT(#REF!,"0") & " " & TEXT(D58,"0.0") & " meV, " & "T=" & TEXT(B58,"0.00") & " K, " &TEXT(G58,"0.00") & "C") -> 
H59: =IF(IF($B59>0,$B59-INDEX($B:$B,_xlfn.AGGREGATE(14,6,1/(LEN($B$1:INDEX(B:B,ROW()-1))>0)*ROW(B:B),1)),"")<>"", ABS(IF($B59>0,$B59-INDEX($B:$B,_xlfn.AGGREGATE(14,6,1/(LEN($B$1:INDEX(B:B,ROW()-1))>0)*ROW(B:B),1)),""))/'Time constants'!$C$8+IF(B59=B58,0,1)*'Time constants'!$C$7,"") ->  | I59: =IF(OR(#REF!="High Resolution",#REF!="High Flux"),IF(#REF!=#REF!,0,1)*'Time constants'!#REF!+IF(D59=D58,0,1)*'Time constants'!$C$4,"") ->  | J59: =IF(IF(G59="",0,G59/'Time constants'!$C$6)+IF(H59="",0,H59)+IF(I59="",0,I59)=0,"",IF(G59="",0,G59/'Time constants'!$C$6)+IF(H59="",0,H59)+IF(I59="",0,I59)) ->  | L59: =IF(C59="","",TEXT(C59,"0") &", " & TEXT(#REF!,"0") & " " & TEXT(D59,"0.0") & " meV, " & "T=" & TEXT(B59,"0.00") & " K, " &TEXT(G59,"0.00") & "C") -> 
H60: =IF(IF($B60>0,$B60-INDEX($B:$B,_xlfn.AGGREGATE(14,6,1/(LEN($B$1:INDEX(B:B,ROW()-1))>0)*ROW(B:B),1)),"")<>"", ABS(IF($B60>0,$B60-INDEX($B:$B,_xlfn.AGGREGATE(14,6,1/(LEN($B$1:INDEX(B:B,ROW()-1))>0)*ROW(B:B),1)),""))/'Time constants'!$C$8+IF(B60=B59,0,1)*'Time constants'!$C$7,"") ->  | I60: =IF(OR(#REF!="High Resolution",#REF!="High Flux"),IF(#REF!=#REF!,0,1)*'Time constants'!#REF!+IF(D60=D59,0,1)*'Time constants'!$C$4,"") ->  | J60: =IF(IF(G60="",0,G60/'Time constants'!$C$6)+IF(H60="",0,H60)+IF(I60="",0,I60)=0,"",IF(G60="",0,G60/'Time constants'!$C$6)+IF(H60="",0,H60)+IF(I60="",0,I60)) ->  | L60: =IF(C60="","",TEXT(C60,"0") &", " & TEXT(#REF!,"0") & " " & TEXT(D60,"0.0") & " meV, " & "T=" & TEXT(B60,"0.00") & " K, " &TEXT(G60,"0.00") & "C") -> 
H61: =IF(IF($B61>0,$B61-INDEX($B:$B,_xlfn.AGGREGATE(14,6,1/(LEN($B$1:INDEX(B:B,ROW()-1))>0)*ROW(B:B),1)),"")<>"", ABS(IF($B61>0,$B61-INDEX($B:$B,_xlfn.AGGREGATE(14,6,1/(LEN($B$1:INDEX(B:B,ROW()-1))>0)*ROW(B:B),1)),""))/'Time constants'!$C$8+IF(B61=B60,0,1)*'Time constants'!$C$7,"") ->  | I61: =IF(OR(#REF!="High Resolution",#REF!="High Flux"),IF(#REF!=#REF!,0,1)*'Time constants'!#REF!+IF(D61=D60,0,1)*'Time constants'!$C$4,"") ->  | J61: =IF(IF(G61="",0,G61/'Time constants'!$C$6)+IF(H61="",0,H61)+IF(I61="",0,I61)=0,"",IF(G61="",0,G61/'Time constants'!$C$6)+IF(H61="",0,H61)+IF(I61="",0,I61)) ->  | L61: =IF(C61="","",TEXT(C61,"0") &", " & TEXT(#REF!,"0") & " " & TEXT(D61,"0.0") & " meV, " & "T=" & TEXT(B61,"0.00") & " K, " &TEXT(G61,"0.00") & "C") -> 
H62: =IF(IF($B62>0,$B62-INDEX($B:$B,_xlfn.AGGREGATE(14,6,1/(LEN($B$1:INDEX(B:B,ROW()-1))>0)*ROW(B:B),1)),"")<>"", ABS(IF($B62>0,$B62-INDEX($B:$B,_xlfn.AGGREGATE(14,6,1/(LEN($B$1:INDEX(B:B,ROW()-1))>0)*ROW(B:B),1)),""))/'Time constants'!$C$8+IF(B62=B61,0,1)*'Time constants'!$C$7,"") ->  | I62: =IF(OR(#REF!="High Resolution",#REF!="High Flux"),IF(#REF!=#REF!,0,1)*'Time constants'!#REF!+IF(D62=D61,0,1)*'Time constants'!$C$4,"") ->  | J62: =IF(IF(G62="",0,G62/'Time constants'!$C$6)+IF(H62="",0,H62)+IF(I62="",0,I62)=0,"",IF(G62="",0,G62/'Time constants'!$C$6)+IF(H62="",0,H62)+IF(I62="",0,I62)) ->  | L62: =IF(C62="","",TEXT(C62,"0") &", " & TEXT(#REF!,"0") & " " & TEXT(D62,"0.0") & " meV, " & "T=" & TEXT(B62,"0.00") & " K, " &TEXT(G62,"0.00") & "C") -> 
H63: =IF(IF($B63>0,$B63-INDEX($B:$B,_xlfn.AGGREGATE(14,6,1/(LEN($B$1:INDEX(B:B,ROW()-1))>0)*ROW(B:B),1)),"")<>"", ABS(IF($B63>0,$B63-INDEX($B:$B,_xlfn.AGGREGATE(14,6,1/(LEN($B$1:INDEX(B:B,ROW()-1))>0)*ROW(B:B),1)),""))/'Time constants'!$C$8+IF(B63=B62,0,1)*'Time constants'!$C$7,"") ->  | I63: =IF(OR(#REF!="High Resolution",#REF!="High Flux"),IF(#REF!=#REF!,0,1)*'Time constants'!#REF!+IF(D63=D62,0,1)*'Time constants'!$C$4,"") ->  | J63: =IF(IF(G63="",0,G63/'Time constants'!$C$6)+IF(H63="",0,H63)+IF(I63="",0,I63)=0,"",IF(G63="",0,G63/'Time constants'!$C$6)+IF(H63="",0,H63)+IF(I63="",0,I63)) ->  | L63: =IF(C63="","",TEXT(C63,"0") &", " & TEXT(#REF!,"0") & " " & TEXT(D63,"0.0") & " meV, " & "T=" & TEXT(B63,"0.00") & " K, " &TEXT(G63,"0.00") & "C") -> 
H64: =IF(IF($B64>0,$B64-INDEX($B:$B,_xlfn.AGGREGATE(14,6,1/(LEN($B$1:INDEX(B:B,ROW()-1))>0)*ROW(B:B),1)),"")<>"", ABS(IF($B64>0,$B64-INDEX($B:$B,_xlfn.AGGREGATE(14,6,1/(LEN($B$1:INDEX(B:B,ROW()-1))>0)*ROW(B:B),1)),""))/'Time constants'!$C$8+IF(B64=B63,0,1)*'Time constants'!$C$7,"") ->  | I64: =IF(OR(#REF!="High Resolution",#REF!="High Flux"),IF(#REF!=#REF!,0,1)*'Time constants'!#REF!+IF(D64=D63,0,1)*'Time constants'!$C$4,"") ->  | J64: =IF(IF(G64="",0,G64/'Time constants'!$C$6)+IF(H64="",0,H64)+IF(I64="",0,I64)=0,"",IF(G64="",0,G64/'Time constants'!$C$6)+IF(H64="",0,H64)+IF(I64="",0,I64)) ->  | L64: =IF(C64="","",TEXT(C64,"0") &", " & TEXT(#REF!,"0") & " " & TEXT(D64,"0.0") & " meV, " & "T=" & TEXT(B64,"0.00") & " K, " &TEXT(G64,"0.00") & "C") -> 
H65: =IF(IF($B65>0,$B65-INDEX($B:$B,_xlfn.AGGREGATE(14,6,1/(LEN($B$1:INDEX(B:B,ROW()-1))>0)*ROW(B:B),1)),"")<>"", ABS(IF($B65>0,$B65-INDEX($B:$B,_xlfn.AGGREGATE(14,6,1/(LEN($B$1:INDEX(B:B,ROW()-1))>0)*ROW(B:B),1)),""))/'Time constants'!$C$8+IF(B65=B64,0,1)*'Time constants'!$C$7,"") ->  | I65: =IF(OR(#REF!="High Resolution",#REF!="High Flux"),IF(#REF!=#REF!,0,1)*'Time constants'!#REF!+IF(D65=D64,0,1)*'Time constants'!$C$4,"") ->  | J65: =IF(IF(G65="",0,G65/'Time constants'!$C$6)+IF(H65="",0,H65)+IF(I65="",0,I65)=0,"",IF(G65="",0,G65/'Time constants'!$C$6)+IF(H65="",0,H65)+IF(I65="",0,I65)) ->  | L65: =IF(C65="","",TEXT(C65,"0") &", " & TEXT(#REF!,"0") & " " & TEXT(D65,"0.0") & " meV, " & "T=" & TEXT(B65,"0.00") & " K, " &TEXT(G65,"0.00") & "C") -> 
H66: =IF(IF($B66>0,$B66-INDEX($B:$B,_xlfn.AGGREGATE(14,6,1/(LEN($B$1:INDEX(B:B,ROW()-1))>0)*ROW(B:B),1)),"")<>"", ABS(IF($B66>0,$B66-INDEX($B:$B,_xlfn.AGGREGATE(14,6,1/(LEN($B$1:INDEX(B:B,ROW()-1))>0)*ROW(B:B),1)),""))/'Time constants'!$C$8+IF(B66=B65,0,1)*'Time constants'!$C$7,"") ->  | I66: =IF(OR(#REF!="High Resolution",#REF!="High Flux"),IF(#REF!=#REF!,0,1)*'Time constants'!#REF!+IF(D66=D65,0,1)*'Time constants'!$C$4,"") ->  | J66: =IF(IF(G66="",0,G66/'Time constants'!$C$6)+IF(H66="",0,H66)+IF(I66="",0,I66)=0,"",IF(G66="",0,G66/'Time constants'!$C$6)+IF(H66="",0,H66)+IF(I66="",0,I66)) ->  | L66: =IF(C66="","",TEXT(C66,"0") &", " & TEXT(#REF!,"0") & " " & TEXT(D66,"0.0") & " meV, " & "T=" & TEXT(B66,"0.00") & " K, " &TEXT(G66,"0.00") & "C") -> 
H67: =IF(IF($B67>0,$B67-INDEX($B:$B,_xlfn.AGGREGATE(14,6,1/(LEN($B$1:INDEX(B:B,ROW()-1))>0)*ROW(B:B),1)),"")<>"", ABS(IF($B67>0,$B67-INDEX($B:$B,_xlfn.AGGREGATE(14,6,1/(LEN($B$1:INDEX(B:B,ROW()-1))>0)*ROW(B:B),1)),""))/'Time constants'!$C$8+IF(B67=B66,0,1)*'Time constants'!$C$7,"") ->  | I67: =IF(OR(#REF!="High Resolution",#REF!="High Flux"),IF(#REF!=#REF!,0,1)*'Time constants'!#REF!+IF(D67=D66,0,1)*'Time constants'!$C$4,"") ->  | J67: =IF(IF(G67="",0,G67/'Time constants'!$C$6)+IF(H67="",0,H67)+IF(I67="",0,I67)=0,"",IF(G67="",0,G67/'Time constants'!$C$6)+IF(H67="",0,H67)+IF(I67="",0,I67)) ->  | L67: =IF(C67="","",TEXT(C67,"0") &", " & TEXT(#REF!,"0") & " " & TEXT(D67,"0.0") & " meV, " & "T=" & TEXT(B67,"0.00") & " K, " &TEXT(G67,"0.00") & "C") -> 
H68: =IF(IF($B68>0,$B68-INDEX($B:$B,_xlfn.AGGREGATE(14,6,1/(LEN($B$1:INDEX(B:B,ROW()-1))>0)*ROW(B:B),1)),"")<>"", ABS(IF($B68>0,$B68-INDEX($B:$B,_xlfn.AGGREGATE(14,6,1/(LEN($B$1:INDEX(B:B,ROW()-1))>0)*ROW(B:B),1)),""))/'Time constants'!$C$8+IF(B68=B67,0,1)*'Time constants'!$C$7,"") ->  | I68: =IF(OR(#REF!="High Resolution",#REF!="High Flux"),IF(#REF!=#REF!,0,1)*'Time constants'!#REF!+IF(D68=D67,0,1)*'Time constants'!$C$4,"") ->  | J68: =IF(IF(G68="",0,G68/'Time constants'!$C$6)+IF(H68="",0,H68)+IF(I68="",0,I68)=0,"",IF(G68="",0,G68/'Time constants'!$C$6)+IF(H68="",0,H68)+IF(I68="",0,I68)) ->  | L68: =IF(C68="","",TEXT(C68,"0") &", " & TEXT(#REF!,"0") & " " & TEXT(D68,"0.0") & " meV, " & "T=" & TEXT(B68,"0.00") & " K, " &TEXT(G68,"0.00") & "C") -> 
H69: =IF(IF($B69>0,$B69-INDEX($B:$B,_xlfn.AGGREGATE(14,6,1/(LEN($B$1:INDEX(B:B,ROW()-1))>0)*ROW(B:B),1)),"")<>"", ABS(IF($B69>0,$B69-INDEX($B:$B,_xlfn.AGGREGATE(14,6,1/(LEN($B$1:INDEX(B:B,ROW()-1))>0)*ROW(B:B),1)),""))/'Time constants'!$C$8+IF(B69=B68,0,1)*'Time constants'!$C$7,"") ->  | I69: =IF(OR(#REF!="High Resolution",#REF!="High Flux"),IF(#REF!=#REF!,0,1)*'Time constants'!#REF!+IF(D69=D68,0,1)*'Time constants'!$C$4,"") ->  | J69: =IF(IF(G69="",0,G69/'Time constants'!$C$6)+IF(H69="",0,H69)+IF(I69="",0,I69)=0,"",IF(G69="",0,G69/'Time constants'!$C$6)+IF(H69="",0,H69)+IF(I69="",0,I69)) ->  | L69: =IF(C69="","",TEXT(C69,"0") &", " & TEXT(#REF!,"0") & " " & TEXT(D69,"0.0") & " meV, " & "T=" & TEXT(B69,"0.00") & " K, " &TEXT(G69,"0.00") & "C") -> 
H70: =IF(IF($B70>0,$B70-INDEX($B:$B,_xlfn.AGGREGATE(14,6,1/(LEN($B$1:INDEX(B:B,ROW()-1))>0)*ROW(B:B),1)),"")<>"", ABS(IF($B70>0,$B70-INDEX($B:$B,_xlfn.AGGREGATE(14,6,1/(LEN($B$1:INDEX(B:B,ROW()-1))>0)*ROW(B:B),1)),""))/'Time constants'!$C$8+IF(B70=B69,0,1)*'Time constants'!$C$7,"") ->  | I70: =IF(OR(#REF!="High Resolution",#REF!="High Flux"),IF(#REF!=#REF!,0,1)*'Time constants'!#REF!+IF(D70=D69,0,1)*'Time constants'!$C$4,"") ->  | J70: =IF(IF(G70="",0,G70/'Time constants'!$C$6)+IF(H70="",0,H70)+IF(I70="",0,I70)=0,"",IF(G70="",0,G70/'Time constants'!$C$6)+IF(H70="",0,H70)+IF(I70="",0,I70)) ->  | L70: =IF(C70="","",TEXT(C70,"0") &", " & TEXT(#REF!,"0") & " " & TEXT(D70,"0.0") & " meV, " & "T=" & TEXT(B70,"0.00") & " K, " &TEXT(G70,"0.00") & "C") -> 
H71: =IF(IF($B71>0,$B71-INDEX($B:$B,_xlfn.AGGREGATE(14,6,1/(LEN($B$1:INDEX(B:B,ROW()-1))>0)*ROW(B:B),1)),"")<>"", ABS(IF($B71>0,$B71-INDEX($B:$B,_xlfn.AGGREGATE(14,6,1/(LEN($B$1:INDEX(B:B,ROW()-1))>0)*ROW(B:B),1)),""))/'Time constants'!$C$8+IF(B71=B70,0,1)*'Time constants'!$C$7,"") ->  | I71: =IF(OR(#REF!="High Resolution",#REF!="High Flux"),IF(#REF!=#REF!,0,1)*'Time constants'!#REF!+IF(D71=D70,0,1)*'Time constants'!$C$4,"") ->  | J71: =IF(IF(G71="",0,G71/'Time constants'!$C$6)+IF(H71="",0,H71)+IF(I71="",0,I71)=0,"",IF(G71="",0,G71/'Time constants'!$C$6)+IF(H71="",0,H71)+IF(I71="",0,I71)) ->  | L71: =IF(C71="","",TEXT(C71,"0") &", " & TEXT(#REF!,"0") & " " & TEXT(D71,"0.0") & " meV, " & "T=" & TEXT(B71,"0.00") & " K, " &TEXT(G71,"0.00") & "C") -> 
H72: =IF(IF($B72>0,$B72-INDEX($B:$B,_xlfn.AGGREGATE(14,6,1/(LEN($B$1:INDEX(B:B,ROW()-1))>0)*ROW(B:B),1)),"")<>"", ABS(IF($B72>0,$B72-INDEX($B:$B,_xlfn.AGGREGATE(14,6,1/(LEN($B$1:INDEX(B:B,ROW()-1))>0)*ROW(B:B),1)),""))/'Time constants'!$C$8+IF(B72=B71,0,1)*'Time constants'!$C$7,"") ->  | I72: =IF(OR(#REF!="High Resolution",#REF!="High Flux"),IF(#REF!=#REF!,0,1)*'Time constants'!#REF!+IF(D72=D71,0,1)*'Time constants'!$C$4,"") ->  | J72: =IF(IF(G72="",0,G72/'Time constants'!$C$6)+IF(H72="",0,H72)+IF(I72="",0,I72)=0,"",IF(G72="",0,G72/'Time constants'!$C$6)+IF(H72="",0,H72)+IF(I72="",0,I72)) ->  | L72: =IF(C72="","",TEXT(C72,"0") &", " & TEXT(#REF!,"0") & " " & TEXT(D72,"0.0") & " meV, " & "T=" & TEXT(B72,"0.00") & " K, " &TEXT(G72,"0.00") & "C") -> 
H73: =IF(IF($B73>0,$B73-INDEX($B:$B,_xlfn.AGGREGATE(14,6,1/(LEN($B$1:INDEX(B:B,ROW()-1))>0)*ROW(B:B),1)),"")<>"", ABS(IF($B73>0,$B73-INDEX($B:$B,_xlfn.AGGREGATE(14,6,1/(LEN($B$1:INDEX(B:B,ROW()-1))>0)*ROW(B:B),1)),""))/'Time constants'!$C$8+IF(B73=B72,0,1)*'Time constants'!$C$7,"") ->  | I73: =IF(OR(#REF!="High Resolution",#REF!="High Flux"),IF(#REF!=#REF!,0,1)*'Time constants'!#REF!+IF(D73=D72,0,1)*'Time constants'!$C$4,"") ->  | J73: =IF(IF(G73="",0,G73/'Time constants'!$C$6)+IF(H73="",0,H73)+IF(I73="",0,I73)=0,"",IF(G73="",0,G73/'Time constants'!$C$6)+IF(H73="",0,H73)+IF(I73="",0,I73)) ->  | L73: =IF(C73="","",TEXT(C73,"0") &", " & TEXT(#REF!,"0") & " " & TEXT(D73,"0.0") & " meV, " & "T=" & TEXT(B73,"0.00") & " K, " &TEXT(G73,"0.00") & "C") -> 
H74: =IF(IF($B74>0,$B74-INDEX($B:$B,_xlfn.AGGREGATE(14,6,1/(LEN($B$1:INDEX(B:B,ROW()-1))>0)*ROW(B:B),1)),"")<>"", ABS(IF($B74>0,$B74-INDEX($B:$B,_xlfn.AGGREGATE(14,6,1/(LEN($B$1:INDEX(B:B,ROW()-1))>0)*ROW(B:B),1)),""))/'Time constants'!$C$8+IF(B74=B73,0,1)*'Time constants'!$C$7,"") ->  | I74: =IF(OR(#REF!="High Resolution",#REF!="High Flux"),IF(#REF!=#REF!,0,1)*'Time constants'!#REF!+IF(D74=D73,0,1)*'Time constants'!$C$4,"") ->  | J74: =IF(IF(G74="",0,G74/'Time constants'!$C$6)+IF(H74="",0,H74)+IF(I74="",0,I74)=0,"",IF(G74="",0,G74/'Time constants'!$C$6)+IF(H74="",0,H74)+IF(I74="",0,I74)) ->  | L74: =IF(C74="","",TEXT(C74,"0") &", " & TEXT(#REF!,"0") & " " & TEXT(D74,"0.0") & " meV, " & "T=" & TEXT(B74,"0.00") & " K, " &TEXT(G74,"0.00") & "C") -> 
H75: =IF(IF($B75>0,$B75-INDEX($B:$B,_xlfn.AGGREGATE(14,6,1/(LEN($B$1:INDEX(B:B,ROW()-1))>0)*ROW(B:B),1)),"")<>"", ABS(IF($B75>0,$B75-INDEX($B:$B,_xlfn.AGGREGATE(14,6,1/(LEN($B$1:INDEX(B:B,ROW()-1))>0)*ROW(B:B),1)),""))/'Time constants'!$C$8+IF(B75=B74,0,1)*'Time constants'!$C$7,"") ->  | I75: =IF(OR(#REF!="High Resolution",#REF!="High Flux"),IF(#REF!=#REF!,0,1)*'Time constants'!#REF!+IF(D75=D74,0,1)*'Time constants'!$C$4,"") ->  | J75: =IF(IF(G75="",0,G75/'Time constants'!$C$6)+IF(H75="",0,H75)+IF(I75="",0,I75)=0,"",IF(G75="",0,G75/'Time constants'!$C$6)+IF(H75="",0,H75)+IF(I75="",0,I75)) ->  | L75: =IF(C75="","",TEXT(C75,"0") &", " & TEXT(#REF!,"0") & " " & TEXT(D75,"0.0") & " meV, " & "T=" & TEXT(B75,"0.00") & " K, " &TEXT(G75,"0.00") & "C") -> 
H76: =IF(IF($B76>0,$B76-INDEX($B:$B,_xlfn.AGGREGATE(14,6,1/(LEN($B$1:INDEX(B:B,ROW()-1))>0)*ROW(B:B),1)),"")<>"", ABS(IF($B76>0,$B76-INDEX($B:$B,_xlfn.AGGREGATE(14,6,1/(LEN($B$1:INDEX(B:B,ROW()-1))>0)*ROW(B:B),1)),""))/'Time constants'!$C$8+IF(B76=B75,0,1)*'Time constants'!$C$7,"") ->  | I76: =IF(OR(#REF!="High Resolution",#REF!="High Flux"),IF(#REF!=#REF!,0,1)*'Time constants'!#REF!+IF(D76=D75,0,1)*'Time constants'!$C$4,"") ->  | J76: =IF(IF(G76="",0,G76/'Time constants'!$C$6)+IF(H76="",0,H76)+IF(I76="",0,I76)=0,"",IF(G76="",0,G76/'Time constants'!$C$6)+IF(H76="",0,H76)+IF(I76="",0,I76)) ->  | L76: =IF(C76="","",TEXT(C76,"0") &", " & TEXT(#REF!,"0") & " " & TEXT(D76,"0.0") & " meV, " & "T=" & TEXT(B76,"0.00") & " K, " &TEXT(G76,"0.00") & "C") -> 
H77: =IF(IF($B77>0,$B77-INDEX($B:$B,_xlfn.AGGREGATE(14,6,1/(LEN($B$1:INDEX(B:B,ROW()-1))>0)*ROW(B:B),1)),"")<>"", ABS(IF($B77>0,$B77-INDEX($B:$B,_xlfn.AGGREGATE(14,6,1/(LEN($B$1:INDEX(B:B,ROW()-1))>0)*ROW(B:B),1)),""))/'Time constants'!$C$8+IF(B77=B76,0,1)*'Time constants'!$C$7,"") ->  | I77: =IF(OR(#REF!="High Resolution",#REF!="High Flux"),IF(#REF!=#REF!,0,1)*'Time constants'!#REF!+IF(D77=D76,0,1)*'Time constants'!$C$4,"") ->  | J77: =IF(IF(G77="",0,G77/'Time constants'!$C$6)+IF(H77="",0,H77)+IF(I77="",0,I77)=0,"",IF(G77="",0,G77/'Time constants'!$C$6)+IF(H77="",0,H77)+IF(I77="",0,I77)) ->  | L77: =IF(C77="","",TEXT(C77,"0") &", " & TEXT(#REF!,"0") & " " & TEXT(D77,"0.0") & " meV, " & "T=" & TEXT(B77,"0.00") & " K, " &TEXT(G77,"0.00") & "C") -> 
H78: =IF(IF($B78>0,$B78-INDEX($B:$B,_xlfn.AGGREGATE(14,6,1/(LEN($B$1:INDEX(B:B,ROW()-1))>0)*ROW(B:B),1)),"")<>"", ABS(IF($B78>0,$B78-INDEX($B:$B,_xlfn.AGGREGATE(14,6,1/(LEN($B$1:INDEX(B:B,ROW()-1))>0)*ROW(B:B),1)),""))/'Time constants'!$C$8+IF(B78=B77,0,1)*'Time constants'!$C$7,"") ->  | I78: =IF(OR(#REF!="High Resolution",#REF!="High Flux"),IF(#REF!=#REF!,0,1)*'Time constants'!#REF!+IF(D78=D77,0,1)*'Time constants'!$C$4,"") ->  | J78: =IF(IF(G78="",0,G78/'Time constants'!$C$6)+IF(H78="",0,H78)+IF(I78="",0,I78)=0,"",IF(G78="",0,G78/'Time constants'!$C$6)+IF(H78="",0,H78)+IF(I78="",0,I78)) ->  | L78: =IF(C78="","",TEXT(C78,"0") &", " & TEXT(#REF!,"0") & " " & TEXT(D78,"0.0") & " meV, " & "T=" & TEXT(B78,"0.00") & " K, " &TEXT(G78,"0.00") & "C") -> 
H79: =IF(IF($B79>0,$B79-INDEX($B:$B,_xlfn.AGGREGATE(14,6,1/(LEN($B$1:INDEX(B:B,ROW()-1))>0)*ROW(B:B),1)),"")<>"", ABS(IF($B79>0,$B79-INDEX($B:$B,_xlfn.AGGREGATE(14,6,1/(LEN($B$1:INDEX(B:B,ROW()-1))>0)*ROW(B:B),1)),""))/'Time constants'!$C$8+IF(B79=B78,0,1)*'Time constants'!$C$7,"") ->  | I79: =IF(OR(#REF!="High Resolution",#REF!="High Flux"),IF(#REF!=#REF!,0,1)*'Time constants'!#REF!+IF(D79=D78,0,1)*'Time constants'!$C$4,"") ->  | J79: =IF(IF(G79="",0,G79/'Time constants'!$C$6)+IF(H79="",0,H79)+IF(I79="",0,I79)=0,"",IF(G79="",0,G79/'Time constants'!$C$6)+IF(H79="",0,H79)+IF(I79="",0,I79)) ->  | L79: =IF(C79="","",TEXT(C79,"0") &", " & TEXT(#REF!,"0") & " " & TEXT(D79,"0.0") & " meV, " & "T=" & TEXT(B79,"0.00") & " K, " &TEXT(G79,"0.00") & "C") -> 
H80: =IF(IF($B80>0,$B80-INDEX($B:$B,_xlfn.AGGREGATE(14,6,1/(LEN($B$1:INDEX(B:B,ROW()-1))>0)*ROW(B:B),1)),"")<>"", ABS(IF($B80>0,$B80-INDEX($B:$B,_xlfn.AGGREGATE(14,6,1/(LEN($B$1:INDEX(B:B,ROW()-1))>0)*ROW(B:B),1)),""))/'Time constants'!$C$8+IF(B80=B79,0,1)*'Time constants'!$C$7,"") ->  | I80: =IF(OR(#REF!="High Resolution",#REF!="High Flux"),IF(#REF!=#REF!,0,1)*'Time constants'!#REF!+IF(D80=D79,0,1)*'Time constants'!$C$4,"") ->  | J80: =IF(IF(G80="",0,G80/'Time constants'!$C$6)+IF(H80="",0,H80)+IF(I80="",0,I80)=0,"",IF(G80="",0,G80/'Time constants'!$C$6)+IF(H80="",0,H80)+IF(I80="",0,I80)) ->  | L80: =IF(C80="","",TEXT(C80,"0") &", " & TEXT(#REF!,"0") & " " & TEXT(D80,"0.0") & " meV, " & "T=" & TEXT(B80,"0.00") & " K, " &TEXT(G80,"0.00") & "C") -> 
H81: =IF(IF($B81>0,$B81-INDEX($B:$B,_xlfn.AGGREGATE(14,6,1/(LEN($B$1:INDEX(B:B,ROW()-1))>0)*ROW(B:B),1)),"")<>"", ABS(IF($B81>0,$B81-INDEX($B:$B,_xlfn.AGGREGATE(14,6,1/(LEN($B$1:INDEX(B:B,ROW()-1))>0)*ROW(B:B),1)),""))/'Time constants'!$C$8+IF(B81=B80,0,1)*'Time constants'!$C$7,"") ->  | I81: =IF(OR(#REF!="High Resolution",#REF!="High Flux"),IF(#REF!=#REF!,0,1)*'Time constants'!#REF!+IF(D81=D80,0,1)*'Time constants'!$C$4,"") ->  | J81: =IF(IF(G81="",0,G81/'Time constants'!$C$6)+IF(H81="",0,H81)+IF(I81="",0,I81)=0,"",IF(G81="",0,G81/'Time constants'!$C$6)+IF(H81="",0,H81)+IF(I81="",0,I81)) ->  | L81: =IF(C81="","",TEXT(C81,"0") &", " & TEXT(#REF!,"0") & " " & TEXT(D81,"0.0") & " meV, " & "T=" & TEXT(B81,"0.00") & " K, " &TEXT(G81,"0.00") & "C") -> 
H82: =IF(IF($B82>0,$B82-INDEX($B:$B,_xlfn.AGGREGATE(14,6,1/(LEN($B$1:INDEX(B:B,ROW()-1))>0)*ROW(B:B),1)),"")<>"", ABS(IF($B82>0,$B82-INDEX($B:$B,_xlfn.AGGREGATE(14,6,1/(LEN($B$1:INDEX(B:B,ROW()-1))>0)*ROW(B:B),1)),""))/'Time constants'!$C$8+IF(B82=B81,0,1)*'Time constants'!$C$7,"") ->  | I82: =IF(OR(#REF!="High Resolution",#REF!="High Flux"),IF(#REF!=#REF!,0,1)*'Time constants'!#REF!+IF(D82=D81,0,1)*'Time constants'!$C$4,"") ->  | J82: =IF(IF(G82="",0,G82/'Time constants'!$C$6)+IF(H82="",0,H82)+IF(I82="",0,I82)=0,"",IF(G82="",0,G82/'Time constants'!$C$6)+IF(H82="",0,H82)+IF(I82="",0,I82)) ->  | L82: =IF(C82="","",TEXT(C82,"0") &", " & TEXT(#REF!,"0") & " " & TEXT(D82,"0.0") & " meV, " & "T=" & TEXT(B82,"0.00") & " K, " &TEXT(G82,"0.00") & "C") -> 
H83: =IF(IF($B83>0,$B83-INDEX($B:$B,_xlfn.AGGREGATE(14,6,1/(LEN($B$1:INDEX(B:B,ROW()-1))>0)*ROW(B:B),1)),"")<>"", ABS(IF($B83>0,$B83-INDEX($B:$B,_xlfn.AGGREGATE(14,6,1/(LEN($B$1:INDEX(B:B,ROW()-1))>0)*ROW(B:B),1)),""))/'Time constants'!$C$8+IF(B83=B82,0,1)*'Time constants'!$C$7,"") ->  | I83: =IF(OR(#REF!="High Resolution",#REF!="High Flux"),IF(#REF!=#REF!,0,1)*'Time constants'!#REF!+IF(D83=D82,0,1)*'Time constants'!$C$4,"") ->  | J83: =IF(IF(G83="",0,G83/'Time constants'!$C$6)+IF(H83="",0,H83)+IF(I83="",0,I83)=0,"",IF(G83="",0,G83/'Time constants'!$C$6)+IF(H83="",0,H83)+IF(I83="",0,I83)) ->  | K83: =IF(J83="","",J83/60+K82) ->  | L83: =IF(C83="","",TEXT(C83,"0") &", " & TEXT(#REF!,"0") & " " & TEXT(D83,"0.0") & " meV, " & "T=" & TEXT(B83,"0.00") & " K, " &TEXT(G83,"0.00") & "C") -> 
H84: =IF(IF($B84>0,$B84-INDEX($B:$B,_xlfn.AGGREGATE(14,6,1/(LEN($B$1:INDEX(B:B,ROW()-1))>0)*ROW(B:B),1)),"")<>"", ABS(IF($B84>0,$B84-INDEX($B:$B,_xlfn.AGGREGATE(14,6,1/(LEN($B$1:INDEX(B:B,ROW()-1))>0)*ROW(B:B),1)),""))/'Time constants'!$C$8+IF(B84=B83,0,1)*'Time constants'!$C$7,"") ->  | I84: =IF(OR(#REF!="High Resolution",#REF!="High Flux"),IF(#REF!=#REF!,0,1)*'Time constants'!#REF!+IF(D84=D83,0,1)*'Time constants'!$C$4,"") ->  | J84: =IF(IF(G84="",0,G84/'Time constants'!$C$6)+IF(H84="",0,H84)+IF(I84="",0,I84)=0,"",IF(G84="",0,G84/'Time constants'!$C$6)+IF(H84="",0,H84)+IF(I84="",0,I84)) ->  | L84: =IF(C84="","",TEXT(C84,"0") &", " & TEXT(#REF!,"0") & " " & TEXT(D84,"0.0") & " meV, " & "T=" & TEXT(B84,"0.00") & " K, " &TEXT(G84,"0.00") & "C") -> 
H85: =IF(IF($B85>0,$B85-INDEX($B:$B,_xlfn.AGGREGATE(14,6,1/(LEN($B$1:INDEX(B:B,ROW()-1))>0)*ROW(B:B),1)),"")<>"", ABS(IF($B85>0,$B85-INDEX($B:$B,_xlfn.AGGREGATE(14,6,1/(LEN($B$1:INDEX(B:B,ROW()-1))>0)*ROW(B:B),1)),""))/'Time constants'!$C$8+IF(B85=B84,0,1)*'Time constants'!$C$7,"") ->  | I85: =IF(OR(#REF!="High Resolution",#REF!="High Flux"),IF(#REF!=#REF!,0,1)*'Time constants'!#REF!+IF(D85=D84,0,1)*'Time constants'!$C$4,"") ->  | J85: =IF(IF(G85="",0,G85/'Time constants'!$C$6)+IF(H85="",0,H85)+IF(I85="",0,I85)=0,"",IF(G85="",0,G85/'Time constants'!$C$6)+IF(H85="",0,H85)+IF(I85="",0,I85)) ->  | L85: =IF(C85="","",TEXT(C85,"0") &", " & TEXT(#REF!,"0") & " " & TEXT(D85,"0.0") & " meV, " & "T=" & TEXT(B85,"0.00") & " K, " &TEXT(G85,"0.00") & "C") -> 
H86: =IF(IF($B86>0,$B86-INDEX($B:$B,_xlfn.AGGREGATE(14,6,1/(LEN($B$1:INDEX(B:B,ROW()-1))>0)*ROW(B:B),1)),"")<>"", ABS(IF($B86>0,$B86-INDEX($B:$B,_xlfn.AGGREGATE(14,6,1/(LEN($B$1:INDEX(B:B,ROW()-1))>0)*ROW(B:B),1)),""))/'Time constants'!$C$8+IF(B86=B85,0,1)*'Time constants'!$C$7,"") ->  | I86: =IF(OR(#REF!="High Resolution",#REF!="High Flux"),IF(#REF!=#REF!,0,1)*'Time constants'!#REF!+IF(D86=D85,0,1)*'Time constants'!$C$4,"") ->  | J86: =IF(IF(G86="",0,G86/'Time constants'!$C$6)+IF(H86="",0,H86)+IF(I86="",0,I86)=0,"",IF(G86="",0,G86/'Time constants'!$C$6)+IF(H86="",0,H86)+IF(I86="",0,I86)) ->  | L86: =IF(C86="","",TEXT(C86,"0") &", " & TEXT(#REF!,"0") & " " & TEXT(D86,"0.0") & " meV, " & "T=" & TEXT(B86,"0.00") & " K, " &TEXT(G86,"0.00") & "C") -> 
H87: =IF(IF($B87>0,$B87-INDEX($B:$B,_xlfn.AGGREGATE(14,6,1/(LEN($B$1:INDEX(B:B,ROW()-1))>0)*ROW(B:B),1)),"")<>"", ABS(IF($B87>0,$B87-INDEX($B:$B,_xlfn.AGGREGATE(14,6,1/(LEN($B$1:INDEX(B:B,ROW()-1))>0)*ROW(B:B),1)),""))/'Time constants'!$C$8+IF(B87=B86,0,1)*'Time constants'!$C$7,"") ->  | I87: =IF(OR(#REF!="High Resolution",#REF!="High Flux"),IF(#REF!=#REF!,0,1)*'Time constants'!#REF!+IF(D87=D86,0,1)*'Time constants'!$C$4,"") ->  | J87: =IF(IF(G87="",0,G87/'Time constants'!$C$6)+IF(H87="",0,H87)+IF(I87="",0,I87)=0,"",IF(G87="",0,G87/'Time constants'!$C$6)+IF(H87="",0,H87)+IF(I87="",0,I87)) ->  | L87: =IF(C87="","",TEXT(C87,"0") &", " & TEXT(#REF!,"0") & " " & TEXT(D87,"0.0") & " meV, " & "T=" & TEXT(B87,"0.00") & " K, " &TEXT(G87,"0.00") & "C") -> 
H88: =IF(IF($B88>0,$B88-INDEX($B:$B,_xlfn.AGGREGATE(14,6,1/(LEN($B$1:INDEX(B:B,ROW()-1))>0)*ROW(B:B),1)),"")<>"", ABS(IF($B88>0,$B88-INDEX($B:$B,_xlfn.AGGREGATE(14,6,1/(LEN($B$1:INDEX(B:B,ROW()-1))>0)*ROW(B:B),1)),""))/'Time constants'!$C$8+IF(B88=B87,0,1)*'Time constants'!$C$7,"") ->  | I88: =IF(OR(#REF!="High Resolution",#REF!="High Flux"),IF(#REF!=#REF!,0,1)*'Time constants'!#REF!+IF(D88=D87,0,1)*'Time constants'!$C$4,"") ->  | J88: =IF(IF(G88="",0,G88/'Time constants'!$C$6)+IF(H88="",0,H88)+IF(I88="",0,I88)=0,"",IF(G88="",0,G88/'Time constants'!$C$6)+IF(H88="",0,H88)+IF(I88="",0,I88)) ->  | L88: =IF(C88="","",TEXT(C88,"0") &", " & TEXT(#REF!,"0") & " " & TEXT(D88,"0.0") & " meV, " & "T=" & TEXT(B88,"0.00") & " K, " &TEXT(G88,"0.00") & "C") -> 
H89: =IF(IF($B89>0,$B89-INDEX($B:$B,_xlfn.AGGREGATE(14,6,1/(LEN($B$1:INDEX(B:B,ROW()-1))>0)*ROW(B:B),1)),"")<>"", ABS(IF($B89>0,$B89-INDEX($B:$B,_xlfn.AGGREGATE(14,6,1/(LEN($B$1:INDEX(B:B,ROW()-1))>0)*ROW(B:B),1)),""))/'Time constants'!$C$8+IF(B89=B88,0,1)*'Time constants'!$C$7,"") ->  | I89: =IF(OR(#REF!="High Resolution",#REF!="High Flux"),IF(#REF!=#REF!,0,1)*'Time constants'!#REF!+IF(D89=D88,0,1)*'Time constants'!$C$4,"") ->  | J89: =IF(IF(G89="",0,G89/'Time constants'!$C$6)+IF(H89="",0,H89)+IF(I89="",0,I89)=0,"",IF(G89="",0,G89/'Time constants'!$C$6)+IF(H89="",0,H89)+IF(I89="",0,I89)) ->  | L89: =IF(C89="","",TEXT(C89,"0") &", " & TEXT(#REF!,"0") & " " & TEXT(D89,"0.0") & " meV, " & "T=" & TEXT(B89,"0.00") & " K, " &TEXT(G89,"0.00") & "C") -> 
H90: =IF(IF($B90>0,$B90-INDEX($B:$B,_xlfn.AGGREGATE(14,6,1/(LEN($B$1:INDEX(B:B,ROW()-1))>0)*ROW(B:B),1)),"")<>"", ABS(IF($B90>0,$B90-INDEX($B:$B,_xlfn.AGGREGATE(14,6,1/(LEN($B$1:INDEX(B:B,ROW()-1))>0)*ROW(B:B),1)),""))/'Time constants'!$C$8+IF(B90=B89,0,1)*'Time constants'!$C$7,"") ->  | I90: =IF(OR(#REF!="High Resolution",#REF!="High Flux"),IF(#REF!=#REF!,0,1)*'Time constants'!#REF!+IF(D90=D89,0,1)*'Time constants'!$C$4,"") ->  | J90: =IF(IF(G90="",0,G90/'Time constants'!$C$6)+IF(H90="",0,H90)+IF(I90="",0,I90)=0,"",IF(G90="",0,G90/'Time constants'!$C$6)+IF(H90="",0,H90)+IF(I90="",0,I90)) ->  | L90: =IF(C90="","",TEXT(C90,"0") &", " & TEXT(#REF!,"0") & " " & TEXT(D90,"0.0") & " meV, " & "T=" & TEXT(B90,"0.00") & " K, " &TEXT(G90,"0.00") & "C") -> 
H91: =IF(IF($B91>0,$B91-INDEX($B:$B,_xlfn.AGGREGATE(14,6,1/(LEN($B$1:INDEX(B:B,ROW()-1))>0)*ROW(B:B),1)),"")<>"", ABS(IF($B91>0,$B91-INDEX($B:$B,_xlfn.AGGREGATE(14,6,1/(LEN($B$1:INDEX(B:B,ROW()-1))>0)*ROW(B:B),1)),""))/'Time constants'!$C$8+IF(B91=B90,0,1)*'Time constants'!$C$7,"") ->  | I91: =IF(OR(#REF!="High Resolution",#REF!="High Flux"),IF(#REF!=#REF!,0,1)*'Time constants'!#REF!+IF(D91=D90,0,1)*'Time constants'!$C$4,"") ->  | J91: =IF(IF(G91="",0,G91/'Time constants'!$C$6)+IF(H91="",0,H91)+IF(I91="",0,I91)=0,"",IF(G91="",0,G91/'Time constants'!$C$6)+IF(H91="",0,H91)+IF(I91="",0,I91)) ->  | L91: =IF(C91="","",TEXT(C91,"0") &", " & TEXT(#REF!,"0") & " " & TEXT(D91,"0.0") & " meV, " & "T=" & TEXT(B91,"0.00") & " K, " &TEXT(G91,"0.00") & "C") -> 
H92: =IF(IF($B92>0,$B92-INDEX($B:$B,_xlfn.AGGREGATE(14,6,1/(LEN($B$1:INDEX(B:B,ROW()-1))>0)*ROW(B:B),1)),"")<>"", ABS(IF($B92>0,$B92-INDEX($B:$B,_xlfn.AGGREGATE(14,6,1/(LEN($B$1:INDEX(B:B,ROW()-1))>0)*ROW(B:B),1)),""))/'Time constants'!$C$8+IF(B92=B91,0,1)*'Time constants'!$C$7,"") ->  | I92: =IF(OR(#REF!="High Resolution",#REF!="High Flux"),IF(#REF!=#REF!,0,1)*'Time constants'!#REF!+IF(D92=D91,0,1)*'Time constants'!$C$4,"") ->  | J92: =IF(IF(G92="",0,G92/'Time constants'!$C$6)+IF(H92="",0,H92)+IF(I92="",0,I92)=0,"",IF(G92="",0,G92/'Time constants'!$C$6)+IF(H92="",0,H92)+IF(I92="",0,I92)) ->  | L92: =IF(C92="","",TEXT(C92,"0") &", " & TEXT(#REF!,"0") & " " & TEXT(D92,"0.0") & " meV, " & "T=" & TEXT(B92,"0.00") & " K, " &TEXT(G92,"0.00") & "C") -> 
H93: =IF(IF($B93>0,$B93-INDEX($B:$B,_xlfn.AGGREGATE(14,6,1/(LEN($B$1:INDEX(B:B,ROW()-1))>0)*ROW(B:B),1)),"")<>"", ABS(IF($B93>0,$B93-INDEX($B:$B,_xlfn.AGGREGATE(14,6,1/(LEN($B$1:INDEX(B:B,ROW()-1))>0)*ROW(B:B),1)),""))/'Time constants'!$C$8+IF(B93=B92,0,1)*'Time constants'!$C$7,"") ->  | I93: =IF(OR(#REF!="High Resolution",#REF!="High Flux"),IF(#REF!=#REF!,0,1)*'Time constants'!#REF!+IF(D93=D92,0,1)*'Time constants'!$C$4,"") ->  | J93: =IF(IF(G93="",0,G93/'Time constants'!$C$6)+IF(H93="",0,H93)+IF(I93="",0,I93)=0,"",IF(G93="",0,G93/'Time constants'!$C$6)+IF(H93="",0,H93)+IF(I93="",0,I93)) ->  | L93: =IF(C93="","",TEXT(C93,"0") &", " & TEXT(#REF!,"0") & " " & TEXT(D93,"0.0") & " meV, " & "T=" & TEXT(B93,"0.00") & " K, " &TEXT(G93,"0.00") & "C") -> 
H94: =IF(IF($B94>0,$B94-INDEX($B:$B,_xlfn.AGGREGATE(14,6,1/(LEN($B$1:INDEX(B:B,ROW()-1))>0)*ROW(B:B),1)),"")<>"", ABS(IF($B94>0,$B94-INDEX($B:$B,_xlfn.AGGREGATE(14,6,1/(LEN($B$1:INDEX(B:B,ROW()-1))>0)*ROW(B:B),1)),""))/'Time constants'!$C$8+IF(B94=B93,0,1)*'Time constants'!$C$7,"") ->  | I94: =IF(OR(#REF!="High Resolution",#REF!="High Flux"),IF(#REF!=#REF!,0,1)*'Time constants'!#REF!+IF(D94=D93,0,1)*'Time constants'!$C$4,"") ->  | J94: =IF(IF(G94="",0,G94/'Time constants'!$C$6)+IF(H94="",0,H94)+IF(I94="",0,I94)=0,"",IF(G94="",0,G94/'Time constants'!$C$6)+IF(H94="",0,H94)+IF(I94="",0,I94)) ->  | L94: =IF(C94="","",TEXT(C94,"0") &", " & TEXT(#REF!,"0") & " " & TEXT(D94,"0.0") & " meV, " & "T=" & TEXT(B94,"0.00") & " K, " &TEXT(G94,"0.00") & "C") -> 
H95: =IF(IF($B95>0,$B95-INDEX($B:$B,_xlfn.AGGREGATE(14,6,1/(LEN($B$1:INDEX(B:B,ROW()-1))>0)*ROW(B:B),1)),"")<>"", ABS(IF($B95>0,$B95-INDEX($B:$B,_xlfn.AGGREGATE(14,6,1/(LEN($B$1:INDEX(B:B,ROW()-1))>0)*ROW(B:B),1)),""))/'Time constants'!$C$8+IF(B95=B94,0,1)*'Time constants'!$C$7,"") ->  | I95: =IF(OR(#REF!="High Resolution",#REF!="High Flux"),IF(#REF!=#REF!,0,1)*'Time constants'!#REF!+IF(D95=D94,0,1)*'Time constants'!$C$4,"") ->  | J95: =IF(IF(G95="",0,G95/'Time constants'!$C$6)+IF(H95="",0,H95)+IF(I95="",0,I95)=0,"",IF(G95="",0,G95/'Time constants'!$C$6)+IF(H95="",0,H95)+IF(I95="",0,I95)) ->  | L95: =IF(C95="","",TEXT(C95,"0") &", " & TEXT(#REF!,"0") & " " & TEXT(D95,"0.0") & " meV, " & "T=" & TEXT(B95,"0.00") & " K, " &TEXT(G95,"0.00") & "C") -> 
H96: =IF(IF($B96>0,$B96-INDEX($B:$B,_xlfn.AGGREGATE(14,6,1/(LEN($B$1:INDEX(B:B,ROW()-1))>0)*ROW(B:B),1)),"")<>"", ABS(IF($B96>0,$B96-INDEX($B:$B,_xlfn.AGGREGATE(14,6,1/(LEN($B$1:INDEX(B:B,ROW()-1))>0)*ROW(B:B),1)),""))/'Time constants'!$C$8+IF(B96=B95,0,1)*'Time constants'!$C$7,"") ->  | I96: =IF(OR(#REF!="High Resolution",#REF!="High Flux"),IF(#REF!=#REF!,0,1)*'Time constants'!#REF!+IF(D96=D95,0,1)*'Time constants'!$C$4,"") ->  | J96: =IF(IF(G96="",0,G96/'Time constants'!$C$6)+IF(H96="",0,H96)+IF(I96="",0,I96)=0,"",IF(G96="",0,G96/'Time constants'!$C$6)+IF(H96="",0,H96)+IF(I96="",0,I96)) ->  | L96: =IF(C96="","",TEXT(C96,"0") &", " & TEXT(#REF!,"0") & " " & TEXT(D96,"0.0") & " meV, " & "T=" & TEXT(B96,"0.00") & " K, " &TEXT(G96,"0.00") & "C") -> 
H97: =IF(IF($B97>0,$B97-INDEX($B:$B,_xlfn.AGGREGATE(14,6,1/(LEN($B$1:INDEX(B:B,ROW()-1))>0)*ROW(B:B),1)),"")<>"", ABS(IF($B97>0,$B97-INDEX($B:$B,_xlfn.AGGREGATE(14,6,1/(LEN($B$1:INDEX(B:B,ROW()-1))>0)*ROW(B:B),1)),""))/'Time constants'!$C$8+IF(B97=B96,0,1)*'Time constants'!$C$7,"") ->  | I97: =IF(OR(#REF!="High Resolution",#REF!="High Flux"),IF(#REF!=#REF!,0,1)*'Time constants'!#REF!+IF(D97=D96,0,1)*'Time constants'!$C$4,"") ->  | J97: =IF(IF(G97="",0,G97/'Time constants'!$C$6)+IF(H97="",0,H97)+IF(I97="",0,I97)=0,"",IF(G97="",0,G97/'Time constants'!$C$6)+IF(H97="",0,H97)+IF(I97="",0,I97)) ->  | L97: =IF(C97="","",TEXT(C97,"0") &", " & TEXT(#REF!,"0") & " " & TEXT(D97,"0.0") & " meV, " & "T=" & TEXT(B97,"0.00") & " K, " &TEXT(G97,"0.00") & "C") -> 
H98: =IF(IF($B98>0,$B98-INDEX($B:$B,_xlfn.AGGREGATE(14,6,1/(LEN($B$1:INDEX(B:B,ROW()-1))>0)*ROW(B:B),1)),"")<>"", ABS(IF($B98>0,$B98-INDEX($B:$B,_xlfn.AGGREGATE(14,6,1/(LEN($B$1:INDEX(B:B,ROW()-1))>0)*ROW(B:B),1)),""))/'Time constants'!$C$8+IF(B98=B97,0,1)*'Time constants'!$C$7,"") ->  | I98: =IF(OR(#REF!="High Resolution",#REF!="High Flux"),IF(#REF!=#REF!,0,1)*'Time constants'!#REF!+IF(D98=D97,0,1)*'Time constants'!$C$4,"") ->  | J98: =IF(IF(G98="",0,G98/'Time constants'!$C$6)+IF(H98="",0,H98)+IF(I98="",0,I98)=0,"",IF(G98="",0,G98/'Time constants'!$C$6)+IF(H98="",0,H98)+IF(I98="",0,I98)) ->  | L98: =IF(C98="","",TEXT(C98,"0") &", " & TEXT(#REF!,"0") & " " & TEXT(D98,"0.0") & " meV, " & "T=" & TEXT(B98,"0.00") & " K, " &TEXT(G98,"0.00") & "C") -> 
H99: =IF(IF($B99>0,$B99-INDEX($B:$B,_xlfn.AGGREGATE(14,6,1/(LEN($B$1:INDEX(B:B,ROW()-1))>0)*ROW(B:B),1)),"")<>"", ABS(IF($B99>0,$B99-INDEX($B:$B,_xlfn.AGGREGATE(14,6,1/(LEN($B$1:INDEX(B:B,ROW()-1))>0)*ROW(B:B),1)),""))/'Time constants'!$C$8+IF(B99=B98,0,1)*'Time constants'!$C$7,"") ->  | I99: =IF(OR(#REF!="High Resolution",#REF!="High Flux"),IF(#REF!=#REF!,0,1)*'Time constants'!#REF!+IF(D99=D98,0,1)*'Time constants'!$C$4,"") ->  | J99: =IF(IF(G99="",0,G99/'Time constants'!$C$6)+IF(H99="",0,H99)+IF(I99="",0,I99)=0,"",IF(G99="",0,G99/'Time constants'!$C$6)+IF(H99="",0,H99)+IF(I99="",0,I99)) ->  | L99: =IF(C99="","",TEXT(C99,"0") &", " & TEXT(#REF!,"0") & " " & TEXT(D99,"0.0") & " meV, " & "T=" & TEXT(B99,"0.00") & " K, " &TEXT(G99,"0.00") & "C") -> 
H100: =IF(IF($B100>0,$B100-INDEX($B:$B,_xlfn.AGGREGATE(14,6,1/(LEN($B$1:INDEX(B:B,ROW()-1))>0)*ROW(B:B),1)),"")<>"", ABS(IF($B100>0,$B100-INDEX($B:$B,_xlfn.AGGREGATE(14,6,1/(LEN($B$1:INDEX(B:B,ROW()-1))>0)*ROW(B:B),1)),""))/'Time constants'!$C$8+IF(B100=B99,0,1)*'Time constants'!$C$7,"") ->  | I100: =IF(OR(#REF!="High Resolution",#REF!="High Flux"),IF(#REF!=#REF!,0,1)*'Time constants'!#REF!+IF(D100=D99,0,1)*'Time constants'!$C$4,"") ->  | J100: =IF(IF(G100="",0,G100/'Time constants'!$C$6)+IF(H100="",0,H100)+IF(I100="",0,I100)=0,"",IF(G100="",0,G100/'Time constants'!$C$6)+IF(H100="",0,H100)+IF(I100="",0,I100)) ->  | L100: =IF(C100="","",TEXT(C100,"0") &", " & TEXT(#REF!,"0") & " " & TEXT(D100,"0.0") & " meV, " & "T=" & TEXT(B100,"0.00") & " K, " &TEXT(G100,"0.00") & "C") -> 
H101: =IF(IF($B101>0,$B101-INDEX($B:$B,_xlfn.AGGREGATE(14,6,1/(LEN($B$1:INDEX(B:B,ROW()-1))>0)*ROW(B:B),1)),"")<>"", ABS(IF($B101>0,$B101-INDEX($B:$B,_xlfn.AGGREGATE(14,6,1/(LEN($B$1:INDEX(B:B,ROW()-1))>0)*ROW(B:B),1)),""))/'Time constants'!$C$8+IF(B101=B100,0,1)*'Time constants'!$C$7,"") ->  | I101: =IF(OR(#REF!="High Resolution",#REF!="High Flux"),IF(#REF!=#REF!,0,1)*'Time constants'!#REF!+IF(D101=D100,0,1)*'Time constants'!$C$4,"") ->  | J101: =IF(IF(G101="",0,G101/'Time constants'!$C$6)+IF(H101="",0,H101)+IF(I101="",0,I101)=0,"",IF(G101="",0,G101/'Time constants'!$C$6)+IF(H101="",0,H101)+IF(I101="",0,I101)) ->  | L101: =IF(C101="","",TEXT(C101,"0") &", " & TEXT(#REF!,"0") & " " & TEXT(D101,"0.0") & " meV, " & "T=" & TEXT(B101,"0.00") & " K, " &TEXT(G101,"0.00") & "C") -> 
H102: =IF(IF($B102>0,$B102-INDEX($B:$B,_xlfn.AGGREGATE(14,6,1/(LEN($B$1:INDEX(B:B,ROW()-1))>0)*ROW(B:B),1)),"")<>"", ABS(IF($B102>0,$B102-INDEX($B:$B,_xlfn.AGGREGATE(14,6,1/(LEN($B$1:INDEX(B:B,ROW()-1))>0)*ROW(B:B),1)),""))/'Time constants'!$C$8+IF(B102=B101,0,1)*'Time constants'!$C$7,"") ->  | I102: =IF(OR(#REF!="High Resolution",#REF!="High Flux"),IF(#REF!=#REF!,0,1)*'Time constants'!#REF!+IF(D102=D101,0,1)*'Time constants'!$C$4,"") ->  | J102: =IF(IF(G102="",0,G102/'Time constants'!$C$6)+IF(H102="",0,H102)+IF(I102="",0,I102)=0,"",IF(G102="",0,G102/'Time constants'!$C$6)+IF(H102="",0,H102)+IF(I102="",0,I102)) ->  | L102: =IF(C102="","",TEXT(C102,"0") &", " & TEXT(#REF!,"0") & " " & TEXT(D102,"0.0") & " meV, " & "T=" & TEXT(B102,"0.00") & " K, " &TEXT(G102,"0.00") & "C") -> 
H103: =IF(IF($B103>0,$B103-INDEX($B:$B,_xlfn.AGGREGATE(14,6,1/(LEN($B$1:INDEX(B:B,ROW()-1))>0)*ROW(B:B),1)),"")<>"", ABS(IF($B103>0,$B103-INDEX($B:$B,_xlfn.AGGREGATE(14,6,1/(LEN($B$1:INDEX(B:B,ROW()-1))>0)*ROW(B:B),1)),""))/'Time constants'!$C$8+IF(B103=B102,0,1)*'Time constants'!$C$7,"") ->  | I103: =IF(OR(#REF!="High Resolution",#REF!="High Flux"),IF(#REF!=#REF!,0,1)*'Time constants'!#REF!+IF(D103=D102,0,1)*'Time constants'!$C$4,"") ->  | J103: =IF(IF(G103="",0,G103/'Time constants'!$C$6)+IF(H103="",0,H103)+IF(I103="",0,I103)=0,"",IF(G103="",0,G103/'Time constants'!$C$6)+IF(H103="",0,H103)+IF(I103="",0,I103)) ->  | L103: =IF(C103="","",TEXT(C103,"0") &", " & TEXT(#REF!,"0") & " " & TEXT(D103,"0.0") & " meV, " & "T=" & TEXT(B103,"0.00") & " K, " &TEXT(G103,"0.00") & "C") -> 
H104: =IF(IF($B104>0,$B104-INDEX($B:$B,_xlfn.AGGREGATE(14,6,1/(LEN($B$1:INDEX(B:B,ROW()-1))>0)*ROW(B:B),1)),"")<>"", ABS(IF($B104>0,$B104-INDEX($B:$B,_xlfn.AGGREGATE(14,6,1/(LEN($B$1:INDEX(B:B,ROW()-1))>0)*ROW(B:B),1)),""))/'Time constants'!$C$8+IF(B104=B103,0,1)*'Time constants'!$C$7,"") ->  | I104: =IF(OR(#REF!="High Resolution",#REF!="High Flux"),IF(#REF!=#REF!,0,1)*'Time constants'!#REF!+IF(D104=D103,0,1)*'Time constants'!$C$4,"") ->  | J104: =IF(IF(G104="",0,G104/'Time constants'!$C$6)+IF(H104="",0,H104)+IF(I104="",0,I104)=0,"",IF(G104="",0,G104/'Time constants'!$C$6)+IF(H104="",0,H104)+IF(I104="",0,I104)) ->  | L104: =IF(C104="","",TEXT(C104,"0") &", " & TEXT(#REF!,"0") & " " & TEXT(D104,"0.0") & " meV, " & "T=" & TEXT(B104,"0.00") & " K, " &TEXT(G104,"0.00") & "C") -> 
H105: =IF(IF($B105>0,$B105-INDEX($B:$B,_xlfn.AGGREGATE(14,6,1/(LEN($B$1:INDEX(B:B,ROW()-1))>0)*ROW(B:B),1)),"")<>"", ABS(IF($B105>0,$B105-INDEX($B:$B,_xlfn.AGGREGATE(14,6,1/(LEN($B$1:INDEX(B:B,ROW()-1))>0)*ROW(B:B),1)),""))/'Time constants'!$C$8+IF(B105=B104,0,1)*'Time constants'!$C$7,"") ->  | I105: =IF(OR(#REF!="High Resolution",#REF!="High Flux"),IF(#REF!=#REF!,0,1)*'Time constants'!#REF!+IF(D105=D104,0,1)*'Time constants'!$C$4,"") ->  | J105: =IF(IF(G105="",0,G105/'Time constants'!$C$6)+IF(H105="",0,H105)+IF(I105="",0,I105)=0,"",IF(G105="",0,G105/'Time constants'!$C$6)+IF(H105="",0,H105)+IF(I105="",0,I105)) ->  | L105: =IF(C105="","",TEXT(C105,"0") &", " & TEXT(#REF!,"0") & " " & TEXT(D105,"0.0") & " meV, " & "T=" & TEXT(B105,"0.00") & " K, " &TEXT(G105,"0.00") & "C") -> 
H106: =IF(IF($B106>0,$B106-INDEX($B:$B,_xlfn.AGGREGATE(14,6,1/(LEN($B$1:INDEX(B:B,ROW()-1))>0)*ROW(B:B),1)),"")<>"", ABS(IF($B106>0,$B106-INDEX($B:$B,_xlfn.AGGREGATE(14,6,1/(LEN($B$1:INDEX(B:B,ROW()-1))>0)*ROW(B:B),1)),""))/'Time constants'!$C$8+IF(B106=B105,0,1)*'Time constants'!$C$7,"") ->  | I106: =IF(OR(#REF!="High Resolution",#REF!="High Flux"),IF(#REF!=#REF!,0,1)*'Time constants'!#REF!+IF(D106=D105,0,1)*'Time constants'!$C$4,"") ->  | J106: =IF(IF(G106="",0,G106/'Time constants'!$C$6)+IF(H106="",0,H106)+IF(I106="",0,I106)=0,"",IF(G106="",0,G106/'Time constants'!$C$6)+IF(H106="",0,H106)+IF(I106="",0,I106)) ->  | L106: =IF(C106="","",TEXT(C106,"0") &", " & TEXT(#REF!,"0") & " " & TEXT(D106,"0.0") & " meV, " & "T=" & TEXT(B106,"0.00") & " K, " &TEXT(G106,"0.00") & "C") -> 

Sheet Time constants
A1: T
B4: Time to change incident energy (minutes) | C4: 5
B5: Time to change detector vessel angle (minutes) | C5: 5
B6: Coulombs per minute at 1.4 MW power | C6: =4.9/60 -> 0.08166666667
B7: Time to equilibrate temperature (minutes) | C7: 3
B8: Cooling & warming time, linear (K/min) | C8: 3.22
